Workbook

Sheet 使い方
B1: 【 シミュレーターの使い方 】
B2: 【AG-002:家畜排せつ物管理方法の変更】
B4: ■入力用シート | C4: ☜クリックするとページにジャンプします。
B5: モニタリング項目を入力することで、排出削減量が確認できます。
B25: ■計算方法 | C25: ☜クリックするとページにジャンプします。
B26: ベースライン排出量やプロジェクト実施後の排出量と計算式が確認できます。

Sheet 入力用シート
C2: 【AG-002:家畜排せつ物管理方法の変更】
C3: 【黄色セルを上から順に、リストから選択または数値をご記入ください。】
G4: 自動入力
G5: プロジェクト実施者が入力
C7: 排出削減量(t-CO2) | E7: =計算方法!$F$10 -> 58 | F7: ☜下記の黄色セルを入力することで、 最終的に排出削減量が計算されます。
C9: 1) 活動量のモニタリング
B10: モニタリング項目 | E10: 数値 | F10: 単位 | G10: 備考
B11: n | C11: ■ プロジェクト実施後の排せつ物の管理区分 | E11: ふん尿分離 | F11: ー | G11: 選択肢から選択してください。
D12: ー ふん | G12: =IF($E$11="ふん尿分離","選択肢から選択してください。","") -> 選択肢から選択してください。
D13: ー 尿 | G13: =IF($E$11="ふん尿分離","選択肢から選択してください。","") -> 選択肢から選択してください。
D14: ー ふん尿混合 | G14: =IF($E$11="ふん尿混合","選択肢から選択してください。","") -> 
B15: k | C15: 家畜の種類 | E15: 乳用牛 | F15: ー | G15: 選択肢から選択してください。
B16: NPJ,n,k | C16: ■ プロジェクト実施後の管理区分 n において飼養した家畜種 k の平均飼養頭数 | E16: =SUM(E17:E29) -> 36 | F16: =IF(D16=" ー ","","頭") -> 
D17: =IFERROR(INDEX(※2!$B$4:$B$27, SMALL(IF(※2!$A$4:$A$27=$E$15, ROW(※2!$A$4:$A$27)-ROW(※2!$A$4)+1), ROW(1:1)))," ー ") -> ー 搾乳牛(三産以上) | E17: 1 | F17: 頭 | G17: =IF(D17=" ー ","","数値を入力してください。") -> 数値を入力してください。
D18: =IFERROR(INDEX(※2!$B$4:$B$27, SMALL(IF(※2!$A$4:$A$27=$E$15, ROW(※2!$A$4:$A$27)-ROW(※2!$A$4)+1), ROW(2:2)))," ー ") -> ー 搾乳牛(二産) | E18: 2 | F18: 頭 | G18: =IF(D18=" ー ","","数値を入力してください。") -> 数値を入力してください。
D19: =IFERROR(INDEX(※2!$B$4:$B$27, SMALL(IF(※2!$A$4:$A$27=$E$15, ROW(※2!$A$4:$A$27)-ROW(※2!$A$4)+1), ROW(3:3)))," ー ") -> ー 搾乳牛(初産) | E19: 3 | F19: 頭 | G19: 数値を入力してください。
D20: =IFERROR(INDEX(※2!$B$4:$B$27, SMALL(IF(※2!$A$4:$A$27=$E$15, ROW(※2!$A$4:$A$27)-ROW(※2!$A$4)+1), ROW(4:4)))," ー ") -> ー 乾乳牛・未経産牛 | E20: 4 | F20: 頭 | G20: 数値を入力してください。
D21: =IFERROR(INDEX(※2!$B$4:$B$27, SMALL(IF(※2!$A$4:$A$27=$E$15, ROW(※2!$A$4:$A$27)-ROW(※2!$A$4)+1), ROW(5:5)))," ー ") -> ー 育成牛(7-24カ月) | E21: 5 | F21: 頭 | G21: 数値を入力してください。
D22: =IFERROR(INDEX(※2!$B$4:$B$27, SMALL(IF(※2!$A$4:$A$27=$E$15, ROW(※2!$A$4:$A$27)-ROW(※2!$A$4)+1), ROW(6:6)))," ー ") -> ー 育成牛(3-6カ月) | E22: 6 | F22: 頭 | G22: 数値を入力してください。
D23: =IFERROR(INDEX(※2!$B$4:$B$27, SMALL(IF(※2!$A$4:$A$27=$E$15, ROW(※2!$A$4:$A$27)-ROW(※2!$A$4)+1), ROW(7:7)))," ー ") -> ー | E23: 7
D24: =IFERROR(INDEX(※2!$B$4:$B$27, SMALL(IF(※2!$A$4:$A$27=$E$15, ROW(※2!$A$4:$A$27)-ROW(※2!$A$4)+1), ROW(8:8)))," ー ") -> ー | E24: 8
D25: =IFERROR(INDEX(※2!$B$4:$B$27, SMALL(IF(※2!$A$4:$A$27=$E$15, ROW(※2!$A$4:$A$27)-ROW(※2!$A$4)+1), ROW(9:9)))," ー ") -> ー
D26: =IFERROR(INDEX(※2!$B$4:$B$27, SMALL(IF(※2!$A$4:$A$27=$E$15, ROW(※2!$A$4:$A$27)-ROW(※2!$A$4)+1), ROW(10:10)))," ー ") -> ー
D27: =IFERROR(INDEX(※2!$B$4:$B$27, SMALL(IF(※2!$A$4:$A$27=$E$15, ROW(※2!$A$4:$A$27)-ROW(※2!$A$4)+1), ROW(11:11)))," ー ") -> ー
D28: =IFERROR(INDEX(※2!$B$4:$B$27, SMALL(IF(※2!$A$4:$A$27=$E$15, ROW(※2!$A$4:$A$27)-ROW(※2!$A$4)+1), ROW(12:12)))," ー ") -> ー | G28: =IF(D28=" ー ","","数値を入力してください。") -> 
D29: =IFERROR(INDEX(※2!$B$4:$B$27, SMALL(IF(※2!$A$4:$A$27=$E$15, ROW(※2!$A$4:$A$27)-ROW(※2!$A$4)+1), ROW(13:13)))," ー ") -> ー | F29: =IF(D29=" ー ","","頭") -> 
B30: DPJ,n,k | C30: プロジェクト実施後の排せつ管理区分 n において家畜種 k を飼養した日数 | E30: 365 | F30: 日/年 | G30: 数値を入力してください。
B31: - | C31: 排せつ物管理設備の使用によるプロジェクト実施後排出量 | E31: c-1) 化石燃料を使用する場合 | G31: 選択肢から選択してください。 | I31: c-1) 化石燃料を使用する場合
B32: FPJ,process | C32: プロジェクト実施後の排せつ物管理設備における燃料使用量 | D32: c-1) 化石燃料を使用する場合 | E32: 100 | F32: kL/年、t/年、m3/年等 | G32: =IF($E$31=D32,"数値を入力してください。","") -> 数値を入力してください。 | I32: c-2) 電力を使用する場合 （自家用発電機以外）
B33: ELPJ,process | C33: プロジェクト実施後の排せつ物管理設備における電力使用量 | D33: c-2) 電力を使用する場合 （自家用発電機以外） | E33: 100 | F33: kWh/年 | G33: =IF($E$31=D33,"数値を入力してください。。","") ->  | H33: ※5 | I33: c-2)電力を使用する場合（自家用発電機）
B34: FPJ,transport | C34: プロジェクト実施後の排せつ物の運搬における燃料使用量 | E34: 2 | F34: kL/年 | G34: 数値を入力してください。
B35: NBefore,m,k | C35: ■ プロジェクト実施前の排せつ管理区分 m において飼養した家畜種 k の平均飼養頭数 | E35: =SUM($E$36:$E$48) -> 100 | F35: 頭
D36: =IFERROR(INDEX(※2!$B$4:$B$28, SMALL(IF(※2!$A$4:$A$28=$E$15, ROW(※2!$A$4:$A$28)-ROW(※2!$A$4)+1), ROW(1:1)))," ー ") -> ー 搾乳牛(三産以上) | E36: 100 | F36: =IF(D36=" ー ","","頭") -> 頭 | G36: =IF(D36=" ー ","","数値を入力してください。") -> 数値を入力してください。
D37: =IFERROR(INDEX(※2!$B$4:$B$28, SMALL(IF(※2!$A$4:$A$28=$E$15, ROW(※2!$A$4:$A$28)-ROW(※2!$A$4)+1), ROW(2:2)))," ー ") -> ー 搾乳牛(二産) | F37: 頭 | G37: =IF(D37=" ー ","","数値を入力してください。") -> 数値を入力してください。
D38: =IFERROR(INDEX(※2!$B$4:$B$28, SMALL(IF(※2!$A$4:$A$28=$E$15, ROW(※2!$A$4:$A$28)-ROW(※2!$A$4)+1), ROW(3:3)))," ー ") -> ー 搾乳牛(初産) | F38: 頭 | G38: =IF(D38=" ー ","","数値を入力してください。") -> 数値を入力してください。
D39: =IFERROR(INDEX(※2!$B$4:$B$28, SMALL(IF(※2!$A$4:$A$28=$E$15, ROW(※2!$A$4:$A$28)-ROW(※2!$A$4)+1), ROW(4:4)))," ー ") -> ー 乾乳牛・未経産牛 | F39: 頭 | G39: 数値を入力してください。
D40: =IFERROR(INDEX(※2!$B$4:$B$28, SMALL(IF(※2!$A$4:$A$28=$E$15, ROW(※2!$A$4:$A$28)-ROW(※2!$A$4)+1), ROW(5:5)))," ー ") -> ー 育成牛(7-24カ月) | F40: 頭 | G40: 数値を入力してください。
D41: =IFERROR(INDEX(※2!$B$4:$B$28, SMALL(IF(※2!$A$4:$A$28=$E$15, ROW(※2!$A$4:$A$28)-ROW(※2!$A$4)+1), ROW(6:6)))," ー ") -> ー 育成牛(3-6カ月) | F41: 頭 | G41: 数値を入力してください。
D42: =IFERROR(INDEX(※2!$B$4:$B$28, SMALL(IF(※2!$A$4:$A$28=$E$15, ROW(※2!$A$4:$A$28)-ROW(※2!$A$4)+1), ROW(7:7)))," ー ") -> 0
D43: =IFERROR(INDEX(※2!$B$4:$B$28, SMALL(IF(※2!$A$4:$A$28=$E$15, ROW(※2!$A$4:$A$28)-ROW(※2!$A$4)+1), ROW(8:8)))," ー ") -> ー
D44: =IFERROR(INDEX(※2!$B$4:$B$28, SMALL(IF(※2!$A$4:$A$28=$E$15, ROW(※2!$A$4:$A$28)-ROW(※2!$A$4)+1), ROW(9:9)))," ー ") -> ー
D45: =IFERROR(INDEX(※2!$B$4:$B$28, SMALL(IF(※2!$A$4:$A$28=$E$15, ROW(※2!$A$4:$A$28)-ROW(※2!$A$4)+1), ROW(10:10)))," ー ") -> ー
D46: =IFERROR(INDEX(※2!$B$4:$B$28, SMALL(IF(※2!$A$4:$A$28=$E$15, ROW(※2!$A$4:$A$28)-ROW(※2!$A$4)+1), ROW(11:11)))," ー ") -> ー
D47: =IFERROR(INDEX(※2!$B$4:$B$28, SMALL(IF(※2!$A$4:$A$28=$E$15, ROW(※2!$A$4:$A$28)-ROW(※2!$A$4)+1), ROW(12:12)))," ー ") -> ー | G47: =IF(D47=" ー ","","数値を入力してください。") -> 
D48: =IFERROR(INDEX(※2!$B$4:$B$28, SMALL(IF(※2!$A$4:$A$28=$E$15, ROW(※2!$A$4:$A$28)-ROW(※2!$A$4)+1), ROW(13:13)))," ー ") -> ー | F48: =IF(D48=" ー ","","頭") -> 
B49: DBefore,m,k | C49: プロジェクト実施前の排せつ管理区分 m において家畜種 k を飼養した日数 | E49: 365 | F49: 日/年 | G49: 数値を入力してください。
B50: m | C50: ■ ベースラインの排せつ物の管理区分 | E50: ふん尿混合 | F50: ー | G50: 選択肢から選択してください。
D51: ー ふん | G51: =IF($E$11="ふん尿分離","選択肢から選択してください。","") -> 選択肢から選択してください。
D52: ー 尿 | E52: 強制発酵 | G52: =IF($E$11="ふん尿分離","選択肢から選択してください。","") -> 選択肢から選択してください。
D53: ー ふん尿混合 | E53: 天日乾燥 | G53: =IF($E$11="ふん尿混合","選択肢から選択してください。","") -> 
B54: - | C54: 排せつ物管理設備の使用によるベースライン排出量 | E54: c-2) 電力を使用する場合 （自家用発電機以外） | G54: 選択肢から選択してください。
B55: FBL,process | C55: ベースラインの排せつ物管理設備における燃料使用量 | D55: c-1) 化石燃料を使用する場合 | E55: 100 | F55: kL/年、t/年、m3/年等 | G55: =IF($E$54=D55,"数値を入力してください。","") -> 
B56: ELBL,process | C56: ベースラインの排せつ物管理設備における電力使用量 | D56: c-2) 電力を使用する場合 （自家用発電機以外） | E56: 100 | F56: kWh/年 | G56: =IF($E$54=D56,"数値を入力してください。","") -> 数値を入力してください。
B57: FBL,transport | C57: ベースラインの排せつ物の運搬における燃料使用量 | E57: 100 | F57: kL/年 | G57: 数値を入力してください。
C59: 2) 係数のモニタリング
B60: モニタリング項目 | E60: 数値 | F60: 単位 | G60: 備考
B61: EFCH4,n,k | C61: ■ 家畜種 k の排せつ管理区分 n の CH4 排出係数 | H61: ※1
D62: ー ふん | E62: =INDEX(条件1!D3:H12, MATCH($E12, 条件1!C3:C12, 0), MATCH($E$15, 条件1!D2:H2, 0)) -> 0.038 | F62: tCH4/t 有機物
D63: ー 尿 | E63: =INDEX(条件1!D13:H18, MATCH($E13, 条件1!C13:C18, 0), MATCH($E$15, 条件1!D2:H2, 0)) -> 0.017704 | F63: tCH4/t 有機物
D64: ー ふん尿混合 | E64: =INDEX(条件1!D19:H28, MATCH($E14, 条件1!C19:C28, 0), MATCH($E$15, 条件1!D2:H2, 0)) -> 0.038 | F64: tCH4/t 有機物
B65: AMn,k | C65: ■ 排せつ管理区分 n において飼養した家畜種 k の 1頭、1 日当たりの排せつ物量 | H65: ※2
D66: ー ふん | E66: =INDEX('※2 (一時計算用_不使用)'!$D$4:$D$32, MATCH($E$15&"小計", INDEX('※2 (一時計算用_不使用)'!$A$4:$A$32 & '※2 (一時計算用_不使用)'!$C$4:$C$32, 0, 1), 0)) -> 20530 | F66: kg/頭/日
D67: ー 尿 | E67: =INDEX('※2 (一時計算用_不使用)'!$E$4:$E$32, MATCH($E$15&"小計", INDEX('※2 (一時計算用_不使用)'!$A$4:$A$32 & '※2 (一時計算用_不使用)'!$C$4:$C$32, 0, 1), 0)) -> 8560 | F67: kg/頭/日
B68: CNn,k | C68: ■ 排せつ管理区分 n において飼養した家畜種 k の排せつ物中に含まれる有機物含有率 | H68: ※2
D69: ー ふん | E69: =INDEX(※3!$B$4:$B$8, MATCH($E$15, ※3!$A$4:$A$8, 0)) -> 0.16
D70: ー 尿 | E70: =INDEX(※3!$C$4:$C$8, MATCH($E$15, ※3!$A$4:$A$8, 0)) -> 0.005
B71: GWPCH4 | C71: CH4 の地球温暖化係数 | E71: 28 | F71: tCO2/tCH4 | H71: default
B72: EFN2O,n,k | C72: ■ 排せつ管理区分 n の N2O排出係数 | H72: ※4
D73: ー ふん | E73: =INDEX(※4!K3:O12, MATCH(E12, ※4!J3:J12, 0), MATCH($E$15, ※4!$K$2:$O$2, 0)) -> 0.024 | F73: tN2O-N/tN
D74: ー 尿 | E74: =INDEX(※4!K13:O18, MATCH(E13, ※4!J13:J18, 0), MATCH($E$15, ※4!$K$2:$O$2, 0)) -> 0.01184 | F74: tN2O-N/tN
D75: ー ふん尿混合 | E75: =INDEX(※4!K19:O29, MATCH(E14, ※4!J19:J29, 0), MATCH($E$15, ※4!$K$2:$O$2, 0)) -> 0 | F75: tN2O-N/tN
B76: MNn,k | C76: ■ 排せつ管理区分 n において飼養した家畜種 k の 1頭、1 日当たりの排せつ物中の窒素量 | D76: ■ ふん | E76: ■ 尿
C77: =IFERROR(INDEX(※2!$B$4:$B$28, SMALL(IF(※2!$A$4:$A$28=$E$15, ROW(※2!$A$4:$A$28)-ROW(※2!$A$4)+1), ROW(1:1)))," ー ") -> ー 搾乳牛(三産以上) | D77: =_xlfn.IFNA(INDEX(※2!$E$4:$E$27, MATCH($C77, ※2!$B$4:$B$27, 0)),0) -> 194.7 | E77: =_xlfn.IFNA(INDEX(※2!$F$4:$F$27,MATCH($C77,※2!$B$4:$B$27,0)),0) -> 96.4
C78: =IFERROR(INDEX(※2!$B$4:$B$28, SMALL(IF(※2!$A$4:$A$28=$E$15, ROW(※2!$A$4:$A$28)-ROW(※2!$A$4)+1), ROW(2:2)))," ー ") -> ー 搾乳牛(二産) | D78: =_xlfn.IFNA(INDEX(※2!$E$4:$E$27, MATCH($C78, ※2!$B$4:$B$27, 0)),0) -> 185.5 | E78: =_xlfn.IFNA(INDEX(※2!$F$4:$F$27,MATCH($C78,※2!$B$4:$B$27,0)),0) -> 104.5
C79: =IFERROR(INDEX(※2!$B$4:$B$28, SMALL(IF(※2!$A$4:$A$28=$E$15, ROW(※2!$A$4:$A$28)-ROW(※2!$A$4)+1), ROW(3:3)))," ー ") -> ー 搾乳牛(初産) | D79: =_xlfn.IFNA(INDEX(※2!$E$4:$E$27, MATCH($C79, ※2!$B$4:$B$27, 0)),0) -> 163.6 | E79: =_xlfn.IFNA(INDEX(※2!$F$4:$F$27,MATCH($C79,※2!$B$4:$B$27,0)),0) -> 101
C80: =IFERROR(INDEX(※2!$B$4:$B$28, SMALL(IF(※2!$A$4:$A$28=$E$15, ROW(※2!$A$4:$A$28)-ROW(※2!$A$4)+1), ROW(4:4)))," ー ") -> ー 乾乳牛・未経産牛 | D80: =_xlfn.IFNA(INDEX(※2!$E$4:$E$27, MATCH($C80, ※2!$B$4:$B$27, 0)),0) -> 85.2 | E80: =_xlfn.IFNA(INDEX(※2!$F$4:$F$27,MATCH($C80,※2!$B$4:$B$27,0)),0) -> 101.4
C81: =IFERROR(INDEX(※2!$B$4:$B$28, SMALL(IF(※2!$A$4:$A$28=$E$15, ROW(※2!$A$4:$A$28)-ROW(※2!$A$4)+1), ROW(5:5)))," ー ") -> ー 育成牛(7-24カ月) | D81: =_xlfn.IFNA(INDEX(※2!$E$4:$E$27, MATCH($C81, ※2!$B$4:$B$27, 0)),0) -> 58.5 | E81: =_xlfn.IFNA(INDEX(※2!$F$4:$F$27,MATCH($C81,※2!$B$4:$B$27,0)),0) -> 71.1
C82: =IFERROR(INDEX(※2!$B$4:$B$28, SMALL(IF(※2!$A$4:$A$28=$E$15, ROW(※2!$A$4:$A$28)-ROW(※2!$A$4)+1), ROW(6:6)))," ー ") -> ー 育成牛(3-6カ月) | D82: =_xlfn.IFNA(INDEX(※2!$E$4:$E$27, MATCH($C82, ※2!$B$4:$B$27, 0)),0) -> 24.9 | E82: =_xlfn.IFNA(INDEX(※2!$F$4:$F$27,MATCH($C82,※2!$B$4:$B$27,0)),0) -> 44.2
C83: =IFERROR(INDEX(※2!$B$4:$B$28, SMALL(IF(※2!$A$4:$A$28=$E$15, ROW(※2!$A$4:$A$28)-ROW(※2!$A$4)+1), ROW(7:7)))," ー ") -> 0 | D83: =_xlfn.IFNA(INDEX(※2!$E$4:$E$27, MATCH($C83, ※2!$B$4:$B$27, 0)),0) -> 1.87 | E83: =_xlfn.IFNA(INDEX(※2!$F$4:$F$27,MATCH($C83,※2!$B$4:$B$27,0)),0) -> 0
C84: =IFERROR(INDEX(※2!$B$4:$B$28, SMALL(IF(※2!$A$4:$A$28=$E$15, ROW(※2!$A$4:$A$28)-ROW(※2!$A$4)+1), ROW(8:8)))," ー ") -> ー | D84: =_xlfn.IFNA(INDEX(※2!$E$4:$E$27, MATCH($C84, ※2!$B$4:$B$27, 0)),0) -> 0 | E84: =_xlfn.IFNA(INDEX(※2!$F$4:$F$27,MATCH($C84,※2!$B$4:$B$27,0)),0) -> 0
C85: =IFERROR(INDEX(※2!$B$4:$B$28, SMALL(IF(※2!$A$4:$A$28=$E$15, ROW(※2!$A$4:$A$28)-ROW(※2!$A$4)+1), ROW(9:9)))," ー ") -> ー | D85: =_xlfn.IFNA(INDEX(※2!$E$4:$E$27, MATCH($C85, ※2!$B$4:$B$27, 0)),0) -> 0 | E85: =_xlfn.IFNA(INDEX(※2!$F$4:$F$27,MATCH($C85,※2!$B$4:$B$27,0)),0) -> 0
C86: =IFERROR(INDEX(※2!$B$4:$B$28, SMALL(IF(※2!$A$4:$A$28=$E$15, ROW(※2!$A$4:$A$28)-ROW(※2!$A$4)+1), ROW(10:10)))," ー ") -> ー | D86: =_xlfn.IFNA(INDEX(※2!$E$4:$E$27, MATCH($C86, ※2!$B$4:$B$27, 0)),0) -> 0 | E86: =_xlfn.IFNA(INDEX(※2!$F$4:$F$27,MATCH($C86,※2!$B$4:$B$27,0)),0) -> 0
C87: =IFERROR(INDEX(※2!$B$4:$B$28, SMALL(IF(※2!$A$4:$A$28=$E$15, ROW(※2!$A$4:$A$28)-ROW(※2!$A$4)+1), ROW(11:11)))," ー ") -> ー | D87: =_xlfn.IFNA(INDEX(※2!$E$4:$E$27, MATCH($C87, ※2!$B$4:$B$27, 0)),0) -> 0 | E87: =_xlfn.IFNA(INDEX(※2!$F$4:$F$27,MATCH($C87,※2!$B$4:$B$27,0)),) -> 0
C88: =IFERROR(INDEX(※2!$B$4:$B$28, SMALL(IF(※2!$A$4:$A$28=$E$15, ROW(※2!$A$4:$A$28)-ROW(※2!$A$4)+1), ROW(12:12)))," ー ") -> ー | D88: =_xlfn.IFNA(INDEX(※2!$E$4:$E$27, MATCH($C88, ※2!$B$4:$B$27, 0)),0) -> 0 | E88: =_xlfn.IFNA(INDEX(※2!$F$4:$F$27,MATCH($C88,※2!$B$4:$B$27,0)),0) -> 0
C89: =IFERROR(INDEX(※2!$B$4:$B$28, SMALL(IF(※2!$A$4:$A$28=$E$15, ROW(※2!$A$4:$A$28)-ROW(※2!$A$4)+1), ROW(13:13)))," ー ") -> ー | D89: =_xlfn.IFNA(INDEX(※2!$E$4:$E$27, MATCH($C89, ※2!$B$4:$B$27, 0)),0) -> 0 | E89: =_xlfn.IFNA(INDEX(※2!$F$4:$F$27,MATCH($C89,※2!$B$4:$B$27,0)),0) -> 0
B90: GWPN2O | C90: N2O の地球温暖化係数 | E90: 265 | F90: tCO2/tN2O
B91: HVPJ, process | C91: プロジェクト実施後の排せつ物管理設備で使用する燃料の単位発熱量 | D91: c-1) 化石燃料を使用する場合 | F91: GJ/kL, GJ/t, GJ/ m3等 | G91: =IF($E$31=D91,"数値を入力してください。","") -> 数値を入力してください。
B92: CEFPJ,process,fuel | C92: プロジェクト実施後において排せつ物管理設備で使用する燃料の単位発熱量当たりの CO2排出係数 | D92: c-1) 化石燃料を使用する場合 | E92: 0.0187 | F92: tCO2/GJ | G92: =IF($E$31=D92,"数値を入力してください。","") -> 数値を入力してください。
B93: CEFelectricity,t | C93: 電力の CO2 排出係数 | D93: c-2) 電力を使用する場合 （自家用発電機以外） | E93: 0.000477 | F93: tCO2/kWh
B94: HVPJ,transport | C94: プロジェクト実施後の排せつ物の運搬に使用する燃料の単位発熱量 | E94: 36.5 | F94: GJ/kL | G94: 数値を入力してください。
B95: CEFPJ,transport | C95: プロジェクト実施後の排せつ物の運搬に使用する燃料の単位発熱量当たりの CO2 排出係数 | E95: 0.0187 | F95: tCO2/GJ | G95: 数値を入力してください。
B96: HVBL,process | C96: ベースラインの排せつ物管理設備で使用する燃料の単位発熱量 | D96: c-1) 化石燃料を使用する場合 | E96: 36.5 | F96: GJ/kL, GJ/t, GJ/ m3等 | G96: =IF($E$54=D96,"数値を入力してください。","") -> 
B97: CEFBL,process,fuel | C97: ベースラインにおいて排せつ物管理設備で使用する燃料の単位発熱量当たり の CO2 排出係数 | D97: c-1) 化石燃料を使用する場合 | E97: 0.0187 | F97: tCO2/GJ | G97: =IF($E$54=D97,"数値を入力してください。","") -> 
B98: CEFelectricity,t | C98: 電力の CO2 排出係数 | D98: c-2) 電力を使用する場合 （自家用発電機以外） | E98: 0.000477 | F98: tCO2/kWh | G98: 数値を入力してください。
B99: HVBL,transport | C99: ベースラインの排せつ物の運搬に使用する燃料の単位発熱量 | E99: 36.5 | F99: GJ/kL | G99: 数値を入力してください。
B100: CEFBL,transport | C100: ベースラインの排せつ物の運搬に使用する燃料の単位発熱量当たりの CO2排出係数 | E100: 0.0187 | F100: tCO2/GJ | G100: 数値を入力してください。
B102: ７．付記
B103: 附属書 A：自家用発電機による発電電力を用いる場合の取扱いについて（要求事項）
B104: 1) 活動量のモニタリング | C104: c-2)電力を使用する場合（自家用発電機）
B105: モニタリング項目 | E105: 数値 | F105: 単位 | G105: 備考
B106: Fgene | C106: 自家用発電機に投入される燃料使用量 | E106: 100 | F106: t/年, kL/年, Nm3/年等 | G106: =IF($E$31=$C$104,"数値を入力してください。","") -> 
B107: ELgene | C107: 自家用発電機の発電電力量 | E107: 100 | F107: kWh/年 | G107: =IF($E$31=$C$104,"数値を入力してください。","") -> 
B109: 2) 係数のモニタリング
B110: モニタリング項目 | E110: 数値 | F110: 単位 | G110: 備考
B111: HVgene,fuel | C111: 自家用発電機に投入される燃料の単位発熱量 | E111: 100 | F111: GJ/t, GJ/kL, GJ/Nm3等 | G111: =IF($E$31=$C$104,"数値を入力してください。","") -> 
B112: CEFgene,fuel | C112: 自家用発電機に投入される燃料の CO2排出係数 | E112: 100 | F112: tCO2/GJ
C113: * 化石燃料の単位発熱量及び排出係数は、供給会社からの提供値又は実測により把握することもできる。この場合、「モニタリング・算定規程」に示す要求頻度を満たしてモニタリングを実施すること。

Sheet 計算方法
C1: 計算方法：家畜排せつ物管理方法の変更 | E1: 【自動で計算されます。】
F3: 自動入力
C5: １．適用条件
C6: 計算式記載なし
C8: ２．排出削減量の算定
C9: 記号 | D9: 定義 | F9: 数値 | G9: 単位 | H9: 計算式
C10: ER | D10: 排出削減量 | F10: =ROUNDDOWN($F$11-$F$12,0) -> 58 | G10: tCO2e /年 | H10: ER = EMBL − EMPJ
C11: EMBL | D11: ベースライン排出量 | F11: =ROUND(F175,1) -> 105.3 | G11: tCO2e /年 | H11: ー
C12: EMPJ | D12: プロジェクト実施後排出量 | F12: =ROUND($F$16,0) -> 47 | G12: tCO2e /年 | H12: ー
C14: ３．プロジェクト実施後排出量の算定
C15: 記号 | D15: 定義 | F15: 数値 | G15: 単位 | H15: 計算式
C16: EMPJ | D16: プロジェクト実施後排出量 | F16: =$F$17+$F$18 -> 46.96086636 | G16: tCO2e/年 | H16: EMPJ = EMPJ,M + EMPJ,S
C17: EMPJ,M | D17: プロジェクト実施後の主要排出量 | F17: =F22 -> 46.87819736 | G17: tCO2e/年 | H17: ー
C18: EMPJ,S | D18: プロジェクト実施後の付随的な排出量 | F18: =F108 -> 0.082669 | G18: tCO2/年 | H18: ー
C20: ＜主要排出活動＞
C21: 記号 | D21: 定義 | F21: 数値 | G21: 単位 | H21: 計算式
C22: EMPJ,M | D22: プロジェクト実施後の主要排出量 | F22: =$F$23+$F$24 -> 46.87819736 | G22: tCO2e/年 | H22: EMPJ,M = EMPJ,M ,CH4 + EMPJ,M ,N2O
C23: EMPJ,M,CH4 | D23: プロジェクト実施後の CH4 起源排出量 | F23: =$F$28 -> 37.22708564 | G23: tCO2e/年 | H23: ー
C24: EMPJ,M,N2O | D24: プロジェクト実施後の N2O 起源排出量 | F24: =F74 -> 9.651111726 | G24: tCO2e/年 | H24: ー
C26: a) 家畜の排せつ物管理によるプロジェクト実施後の CH4 起源排出量
C27: 記号 | D27: 定義 | F27: 数値 | G27: 単位 | H27: 計算式
C28: EMPJ,M,CH4 | D28: ■ プロジェクト実施後の CH4 起源排出量 | F28: =IF($F$32="ふん尿分離", F29+F30, IF($F$32="ふん尿混合", F31, "")) -> 37.22708564 | G28: tCO2e/年 | H28: EMPJ,M,CH4 = Σ(EFCH4,n,k × NPJ,n,k × AMn,k/103 × DPJ,n,k × CNCH4,n,k) × GWPCH4
E29: ふん | F29: =F35*SUMPRODUCT($F$39:$F$51,$E$53:$E$65)*10^-3*$F$66*$F$68*$F$70 -> 36.99051328 | G29: tCO2e/年
E30: 尿 | F30: =F36*SUMPRODUCT($F$39:$F$51,$F$53:$F$65)*10^-3*$F$66*$F$69*$F$70 -> 0.2365723556 | G30: tCO2e/年
E31: ふん尿混合 | F31: =F37*SUMPRODUCT($F$39:$F$51,$E$53:$E$65*F68+F53:F65*F69)*10^-3*$F$66*$F$70 -> 37.49829398 | G31: tCO2e/年
C32: n | D32: プロジェクト実施後の排せつ物の管理区分 | F32: =入力用シート!E11 -> ふん尿分離 | G32: ー | H32: ー
C33: k | D33: 家畜の種類 | F33: =入力用シート!$E$15 -> 乳用牛 | G33: ー | H33: ー
C34: EFCH4,n,k | D34: ■ 家畜種 k の排せつ管理区分 n の CH4 排出係数 | H34: ー
E35: ふん | F35: =入力用シート!E62 -> 0.038 | G35: tCH4/t 有機物
E36: 尿 | F36: =入力用シート!E63 -> 0.017704 | G36: tCH4/t 有機物
E37: ふん尿混合 | F37: =IF(入力用シート!E64="－",0,入力用シート!E64) -> 0.038 | G37: tCH4/t 有機物
C38: NPJ,n,k | D38: ■ プロジェクト実施後の排せつ管理区分 n において飼養した家畜種 kの平均飼養頭数 | F38: =SUM(F39:F51) -> 36 | G38: 頭 | H38: ー
D39: =IF(入力用シート!D36=0,"",入力用シート!D36) -> ー 搾乳牛(三産以上) | F39: =入力用シート!E17 -> 1 | G39: 頭
D40: =IF(入力用シート!D37=0,"",入力用シート!D37) -> ー 搾乳牛(二産) | F40: =入力用シート!E18 -> 2 | G40: 頭
D41: =IF(入力用シート!D38=0,"",入力用シート!D38) -> ー 搾乳牛(初産) | F41: =入力用シート!E19 -> 3 | G41: 頭
D42: =IF(入力用シート!D39=0,"",入力用シート!D39) -> ー 乾乳牛・未経産牛 | F42: =入力用シート!E20 -> 4 | G42: 頭
D43: =IF(入力用シート!D40=0,"",入力用シート!D40) -> ー 育成牛(7-24カ月) | F43: =入力用シート!E21 -> 5 | G43: 頭
D44: =IF(入力用シート!D41=0,"",入力用シート!D41) -> ー 育成牛(3-6カ月) | F44: =入力用シート!E22 -> 6 | G44: 頭
D45: =IF(入力用シート!D42=0,"",入力用シート!D42) ->  | F45: =入力用シート!E23 -> 7 | G45: 頭
D46: =IF(入力用シート!D43=0,"",入力用シート!D43) -> ー | F46: =入力用シート!E24 -> 8 | G46: 頭
D47: =IF(入力用シート!D44=0,"",入力用シート!D44) -> ー | F47: =入力用シート!E25 -> 0 | G47: 頭
D48: =IF(入力用シート!D45=0,"",入力用シート!D45) -> ー | F48: =入力用シート!E26 -> 0 | G48: 頭
D49: =IF(入力用シート!D46=0,"",入力用シート!D46) -> ー | F49: =入力用シート!E27 -> 0 | G49: 頭
D50: =IF(入力用シート!D47=0,"",入力用シート!D47) -> ー | F50: =入力用シート!E28 -> 0 | G50: 頭
D51: =IF(入力用シート!D48=0,"",入力用シート!D48) -> ー | F51: =入力用シート!E29 -> 0 | G51: 頭
C52: AMn,k | D52: ■ 排せつ管理区分 n において飼養した家畜種 k の 1 頭、1 日当たりの排せつ物量 | E52: ■ ふん | F52: ■ 尿
D53: =IF(入力用シート!D36=0,"",入力用シート!D36) -> ー 搾乳牛(三産以上) | E53: =_xlfn.IFNA(INDEX(※2!$C$4:$C$27, MATCH($D53, ※2!$B$4:$B$27, 0)),0) -> 48.2 | F53: =_xlfn.IFNA(INDEX(※2!$D$4:$D$27, MATCH($D53, ※2!$B$4:$B$27, 0)),0) -> 16.9 | G53: kg/頭/日
D54: =IF(入力用シート!D37=0,"",入力用シート!D37) -> ー 搾乳牛(二産) | E54: =_xlfn.IFNA(INDEX(※2!$C$4:$C$27, MATCH($D54, ※2!$B$4:$B$27, 0)),0) -> 46.7 | F54: =_xlfn.IFNA(INDEX(※2!$D$4:$D$27, MATCH($D54, ※2!$B$4:$B$27, 0)),0) -> 17.1 | G54: kg/頭/日
D55: =IF(入力用シート!D38=0,"",入力用シート!D38) -> ー 搾乳牛(初産) | E55: =_xlfn.IFNA(INDEX(※2!$C$4:$C$27, MATCH($D55, ※2!$B$4:$B$27, 0)),0) -> 42.9 | F55: =_xlfn.IFNA(INDEX(※2!$D$4:$D$27, MATCH($D55, ※2!$B$4:$B$27, 0)),0) -> 18.7 | G55: kg/頭/日
D56: =IF(入力用シート!D39=0,"",入力用シート!D39) -> ー 乾乳牛・未経産牛 | E56: =_xlfn.IFNA(INDEX(※2!$C$4:$C$27, MATCH($D56, ※2!$B$4:$B$27, 0)),0) -> 28.4 | F56: =_xlfn.IFNA(INDEX(※2!$D$4:$D$27, MATCH($D56, ※2!$B$4:$B$27, 0)),0) -> 15.3 | G56: kg/頭/日
D57: =IF(入力用シート!D40=0,"",入力用シート!D40) -> ー 育成牛(7-24カ月) | E57: =_xlfn.IFNA(INDEX(※2!$C$4:$C$27, MATCH($D57, ※2!$B$4:$B$27, 0)),0) -> 23.2 | F57: =_xlfn.IFNA(INDEX(※2!$D$4:$D$27, MATCH($D57, ※2!$B$4:$B$27, 0)),0) -> 12.5 | G57: kg/頭/日
D58: =IF(入力用シート!D41=0,"",入力用シート!D41) -> ー 育成牛(3-6カ月) | E58: =_xlfn.IFNA(INDEX(※2!$C$4:$C$27, MATCH($D58, ※2!$B$4:$B$27, 0)),0) -> 15.9 | F58: =_xlfn.IFNA(INDEX(※2!$D$4:$D$27, MATCH($D58, ※2!$B$4:$B$27, 0)),0) -> 5.1 | G58: kg/頭/日
D59: =IF(入力用シート!D42=0,"",入力用シート!D42) ->  | E59: =_xlfn.IFNA(INDEX(※2!$C$4:$C$27, MATCH($D59, ※2!$B$4:$B$27, 0)),0) -> 0 | F59: =_xlfn.IFNA(INDEX(※2!$D$4:$D$27, MATCH($D59, ※2!$B$4:$B$27, 0)),0) -> 0 | G59: kg/頭/日
D60: =IF(入力用シート!D43=0,"",入力用シート!D43) -> ー | E60: =_xlfn.IFNA(INDEX(※2!$C$4:$C$27, MATCH($D60, ※2!$B$4:$B$27, 0)),0) -> 0 | F60: =_xlfn.IFNA(INDEX(※2!$D$4:$D$27, MATCH($D60, ※2!$B$4:$B$27, 0)),0) -> 0 | G60: kg/頭/日
D61: =IF(入力用シート!D44=0,"",入力用シート!D44) -> ー | E61: =_xlfn.IFNA(INDEX(※2!$C$4:$C$27, MATCH($D61, ※2!$B$4:$B$27, 0)),0) -> 0 | F61: =_xlfn.IFNA(INDEX(※2!$D$4:$D$27, MATCH($D61, ※2!$B$4:$B$27, 0)),0) -> 0 | G61: kg/頭/日
D62: =IF(入力用シート!D45=0,"",入力用シート!D45) -> ー | E62: =_xlfn.IFNA(INDEX(※2!$C$4:$C$27, MATCH($D62, ※2!$B$4:$B$27, 0)),0) -> 0 | F62: =_xlfn.IFNA(INDEX(※2!$D$4:$D$27, MATCH($D62, ※2!$B$4:$B$27, 0)),0) -> 0 | G62: kg/頭/日
D63: =IF(入力用シート!D46=0,"",入力用シート!D46) -> ー | E63: =_xlfn.IFNA(INDEX(※2!$C$4:$C$27, MATCH($D63, ※2!$B$4:$B$27, 0)),0) -> 0 | F63: =_xlfn.IFNA(INDEX(※2!$D$4:$D$27, MATCH($D63, ※2!$B$4:$B$27, 0)),0) -> 0 | G63: kg/頭/日
D64: =IF(入力用シート!D47=0,"",入力用シート!D47) -> ー | E64: =_xlfn.IFNA(INDEX(※2!$C$4:$C$27, MATCH($D64, ※2!$B$4:$B$27, 0)),0) -> 0 | F64: =_xlfn.IFNA(INDEX(※2!$D$4:$D$27, MATCH($D64, ※2!$B$4:$B$27, 0)),0) -> 0 | G64: kg/頭/日
D65: =IF(入力用シート!D48=0,"",入力用シート!D48) -> ー | E65: =_xlfn.IFNA(INDEX(※2!$C$4:$C$27, MATCH($D65, ※2!$B$4:$B$27, 0)),0) -> 0 | F65: =_xlfn.IFNA(INDEX(※2!$D$4:$D$27, MATCH($D65, ※2!$B$4:$B$27, 0)),0) -> 0 | G65: kg/頭/日
C66: DPJ,n,k | D66: プロジェクト実施後の排せつ管理区分 n において家畜種 k を飼養した日数 | F66: =入力用シート!E30 -> 365 | G66: 日/年 | H66: ー
C67: CNn,k | D67: ■ 排せつ管理区分 n において飼養した家畜種 k の排せつ物中に含まれる有機物含有率 | H67: ー
E68: ー ふん | F68: =入力用シート!E69 -> 0.16
E69: ー 尿 | F69: =入力用シート!E70 -> 0.005
C70: GWPCH4 | D70: CH4 の地球温暖化係数 | F70: =入力用シート!E71 -> 28 | G70: tCO2/tCH4 | H70: ー
C72: b) 家畜の排せつ物管理によるプロジェクト実施後の N2O 起源排出量
C73: 記号 | D73: 定義 | F73: 数値 | G73: 単位 | H73: 計算式
C74: EMPJ,M,N2O | D74: ■ プロジェクト実施後の N2O 起源排出量 | F74: =IF($F$78="ふん尿分離",F75+F76,IF($F$78="ふん尿混合",F77,"")) -> 9.651111726 | G74: tCO2e/年 | H74: EMPJ,M,N20 = Σ(EFN20,n,k × NPJ,n,k × MNn,k/106 × DPJ,n,k) × 44/28 × GWPN20
E75: ーふん | F75: =SUMPRODUCT($F$39:$F$51,E$89:E$101)*$F$84*$F$102*10^-6*(44/28)*$F$104 -> 6.709243954 | G75: tCO2e/年
E76: ー尿 | F76: =SUMPRODUCT($F$39:$F$51,F$89:F$101)*$F$85*$F$102*10^-6*(44/28)*$F$104 -> 2.941867772 | G76: tCO2e/年
E77: ーふん尿混合 | F77: =SUMPRODUCT($F$39:$F$51,E$89:E$101+F89:F101)*$F$86*$F$102*10^-6*(44/28)*$F$104 -> 0 | G77: tCO2e/年
C78: n | D78: ■ プロジェクト実施後の排せつ物の管理区分 | F78: =入力用シート!$E$11 -> ふん尿分離 | G78: ー | H78: ー
E79: ーふん | F79: =入力用シート!$E12 -> 0
E80: ー尿 | F80: =入力用シート!$E13 -> 0
E81: ーふん尿混合 | F81: =入力用シート!$E14 -> 0
C82: k | D82: 家畜の種類 | F82: =入力用シート!$E15 -> 乳用牛 | G82: ー | H82: ー
C83: EFN2O,n,k | D83: ■ 家畜種 k の排せつ管理区分 n の N2O 排出係数 | H83: ー
E84: ーふん | F84: =入力用シート!E73 -> 0.024 | G84: tN2O-N/tN
E85: ー尿 | F85: =入力用シート!E74 -> 0.01184 | G85: tN2O-N/tN
E86: ーふん尿混合 | F86: =_xlfn.IFNA(入力用シート!E75,0) -> 0 | G86: tN2O-N/tN
C87: NPJ,n,k | D87: プロジェクト実施後の排せつ管理区分 n において飼養した家畜種 kの平均飼養頭数 | F87: =SUM(F39:F51) -> 36 | G87: 頭 | H87: ー
C88: MNn,k | D88: ■ 排せつ管理区分 n において飼養した家畜種 k の 1 頭、1 日当たりの排せつ物中の窒素量 | E88: ■ ふん | F88: ■ 尿 | H88: ー
D89: =IF(入力用シート!D17=0,"",入力用シート!D17) -> ー 搾乳牛(三産以上) | E89: =_xlfn.IFNA(INDEX(※2!$E$4:$E$27, MATCH($D89, ※2!$B$4:$B$27, 0)),0) -> 194.7 | F89: =_xlfn.IFNA(INDEX(※2!$F$4:$F$27, MATCH($D89, ※2!$B$4:$B$27, 0)),0) -> 96.4 | G89: gN/頭/日
D90: =IF(入力用シート!D18=0,"",入力用シート!D18) -> ー 搾乳牛(二産) | E90: =_xlfn.IFNA(INDEX(※2!$E$4:$E$27, MATCH($D90, ※2!$B$4:$B$27, 0)),0) -> 185.5 | F90: =_xlfn.IFNA(INDEX(※2!$F$4:$F$27, MATCH($D90, ※2!$B$4:$B$27, 0)),0) -> 104.5 | G90: gN/頭/日
D91: =IF(入力用シート!D19=0,"",入力用シート!D19) -> ー 搾乳牛(初産) | E91: =_xlfn.IFNA(INDEX(※2!$E$4:$E$27, MATCH($D91, ※2!$B$4:$B$27, 0)),0) -> 163.6 | F91: =_xlfn.IFNA(INDEX(※2!$F$4:$F$27, MATCH($D91, ※2!$B$4:$B$27, 0)),0) -> 101 | G91: gN/頭/日
D92: =IF(入力用シート!D20=0,"",入力用シート!D20) -> ー 乾乳牛・未経産牛 | E92: =_xlfn.IFNA(INDEX(※2!$E$4:$E$27, MATCH($D92, ※2!$B$4:$B$27, 0)),0) -> 85.2 | F92: =_xlfn.IFNA(INDEX(※2!$F$4:$F$27, MATCH($D92, ※2!$B$4:$B$27, 0)),0) -> 101.4 | G92: gN/頭/日
D93: =IF(入力用シート!D21=0,"",入力用シート!D21) -> ー 育成牛(7-24カ月) | E93: =_xlfn.IFNA(INDEX(※2!$E$4:$E$27, MATCH($D93, ※2!$B$4:$B$27, 0)),0) -> 58.5 | F93: =_xlfn.IFNA(INDEX(※2!$F$4:$F$27, MATCH($D93, ※2!$B$4:$B$27, 0)),0) -> 71.1 | G93: gN/頭/日
D94: =IF(入力用シート!D22=0,"",入力用シート!D22) -> ー 育成牛(3-6カ月) | E94: =_xlfn.IFNA(INDEX(※2!$E$4:$E$27, MATCH($D94, ※2!$B$4:$B$27, 0)),0) -> 24.9 | F94: =_xlfn.IFNA(INDEX(※2!$F$4:$F$27, MATCH($D94, ※2!$B$4:$B$27, 0)),0) -> 44.2 | G94: gN/頭/日
D95: =IF(入力用シート!D23=0,"",入力用シート!D23) -> ー | E95: =_xlfn.IFNA(INDEX(※2!$E$4:$E$27, MATCH($D95, ※2!$B$4:$B$27, 0)),0) -> 0 | F95: =_xlfn.IFNA(INDEX(※2!$F$4:$F$27, MATCH($D95, ※2!$B$4:$B$27, 0)),0) -> 0 | G95: gN/頭/日
D96: =IF(入力用シート!D24=0,"",入力用シート!D24) -> ー | E96: =_xlfn.IFNA(INDEX(※2!$E$4:$E$27, MATCH($D96, ※2!$B$4:$B$27, 0)),0) -> 0 | F96: =_xlfn.IFNA(INDEX(※2!$F$4:$F$27, MATCH($D96, ※2!$B$4:$B$27, 0)),0) -> 0 | G96: gN/頭/日
D97: =IF(入力用シート!D25=0,"",入力用シート!D25) -> ー | E97: =_xlfn.IFNA(INDEX(※2!$E$4:$E$27, MATCH($D97, ※2!$B$4:$B$27, 0)),0) -> 0 | F97: =_xlfn.IFNA(INDEX(※2!$F$4:$F$27, MATCH($D97, ※2!$B$4:$B$27, 0)),0) -> 0 | G97: gN/頭/日
D98: =IF(入力用シート!D26=0,"",入力用シート!D26) -> ー | E98: =_xlfn.IFNA(INDEX(※2!$E$4:$E$27, MATCH($D98, ※2!$B$4:$B$27, 0)),0) -> 0 | F98: =_xlfn.IFNA(INDEX(※2!$F$4:$F$27, MATCH($D98, ※2!$B$4:$B$27, 0)),0) -> 0 | G98: gN/頭/日
D99: =IF(入力用シート!D27=0,"",入力用シート!D27) -> ー | E99: =_xlfn.IFNA(INDEX(※2!$E$4:$E$27, MATCH($D99, ※2!$B$4:$B$27, 0)),0) -> 0 | F99: =_xlfn.IFNA(INDEX(※2!$F$4:$F$27, MATCH($D99, ※2!$B$4:$B$27, 0)),0) -> 0 | G99: gN/頭/日
D100: =IF(入力用シート!D28=0,"",入力用シート!D28) -> ー | E100: =_xlfn.IFNA(INDEX(※2!$E$4:$E$27, MATCH($D100, ※2!$B$4:$B$27, 0)),0) -> 0 | F100: =_xlfn.IFNA(INDEX(※2!$F$4:$F$27, MATCH($D100, ※2!$B$4:$B$27, 0)),0) -> 0 | G100: gN/頭/日
D101: =IF(入力用シート!D29=0,"",入力用シート!D29) -> ー | E101: =_xlfn.IFNA(INDEX(※2!$E$4:$E$27, MATCH($D101, ※2!$B$4:$B$27, 0)),0) -> 0 | F101: =_xlfn.IFNA(INDEX(※2!$F$4:$F$27, MATCH($D101, ※2!$B$4:$B$27, 0)),0) -> 0 | G101: gN/頭/日
C102: DPJ,n,k | D102: プロジェクト実施後の排せつ管理区分 n において家畜種 k を飼養した日数 | F102: =入力用シート!$E$30 -> 365 | G102: 日/年 | H102: ー
C103: 44/28 | D103: N2O 中に含まれる窒素重量（tN2O-N）を N2O 重量（tN2O）に変換するための係数 | F103: ー | G103: ー | H103: ー
C104: GWPN2O | D104: N2O の地球温暖化係数 | F104: =入力用シート!$E$90 -> 265 | G104: tCO2/tN2O | H104: ー
C106: ＜付随的な排出活動＞
C107: 記号 | D107: 定義 | F107: 数値 | G107: 単位 | H107: 計算式
C108: EMPJ,S | D108: プロジェクト実施後の付随的な排出量 | F108: =$F$109+$F$110 -> 0.082669 | G108: tCO2/年 | H108: EMPJ ,S = EMPJ ,S , process + EMPJ ,S ,transport
C109: EMPJ,S,process | D109: 排せつ物管理設備の使用によるプロジェクト実施後排出量 | F109: =$F$115 -> 0.034969 | G109: tCO2/年 | H109: ー
C110: EMPJ,S,transport | D110: 排せつ物の運搬によるプロジェクト実施後排出量 | F110: =$F$121 -> 0.0477 | G110: tCO2/年 | H110: ー
C112: c) 排せつ物管理設備の使用によるプロジェクト実施後排出量
C113: c-1) 化石燃料を使用する場合
C114: 記号 | D114: 定義 | F114: 数値 | G114: 単位 | H114: 計算式
C115: EMPJ,S,process | D115: 排せつ物管理設備の使用によるプロジェクト実施後排出量 | F115: =$F$116*$F$117*入力用シート!$E$92 -> 0.034969 | G115: tCO2/年 | H115: EMPJ ,S , process = FPJ , process × HVPJ , process ×CEFPJ , process
C116: FPJ,process,fuel | D116: プロジェクト実施後の排せつ物管理設備における燃料使用量 | F116: =入力用シート!$E$32 -> 100 | G116: kL/年、t/年、m3/年等 | H116: ー
C117: HVPJ,process,fuel | D117: プロジェクト実施後の排せつ物管理設備で使用する燃料の単位発熱量 | F117: =入力用シート!$E$92 -> 0.0187 | G117: GJ/kL, GJ/t, GJ/m3 等 | H117: ー
C119: c-2) 電力を使用する場合
C120: 記号 | D120: 定義 | F120: 数値 | G120: 単位 | H120: 計算式
C121: EMPJ,S,process | D121: 排せつ物管理設備の使用によるプロジェクト実施後排出量 | F121: =$F$122*$F$123 -> 0.0477 | G121: tCO2/年 | H121: EMPJ ,S , process = ELPJ , process × CEFelectricity,t
C122: ELPJ,process | D122: プロジェクト実施後の排せつ物管理設備における電力使用量 | F122: =入力用シート!$E$33 -> 100 | G122: kWh/年 | H122: ー
C123: CEFelectricity,t | D123: 電力の CO2 排出係数 | F123: =入力用シート!$E$93 -> 0.000477 | G123: tCO2/kWh | H123: ー
C124: c-2) 電力を使用する場合(自家用発電機)
C125: 記号 | D125: 定義 | F125: 数値 | G125: 単位 | H125: 計算式
C126: EMPJ,S,process | D126: 排せつ物管理設備の使用によるプロジェクト実施後排出量 | F126: =F127*F128 -> 1000000 | G126: tCO2/年 | H126: EMBL,S , process = ELBL, process × CEFelectricity,t
C127: ELPJ,process | D127: プロジェクト実施後の排せつ物管理設備における電力使用量 | F127: =入力用シート!$E$33 -> 100 | G127: kWh/年 | H127: ー
C128: CEFelectricity,t | D128: 電力の CO2 排出係数 | F128: =入力用シート!$E$106*入力用シート!$E$111/入力用シート!$E$107*入力用シート!E112 -> 10000 | G128: tCO2/kWh | H128: CEFelectricity,t = Fgene × HVgene,fuel/ELgene × CEFgene,fuel
C131: d) 排せつ物の運搬における排出量
C132: 記号 | D132: 定義 | F132: 数値 | G132: 単位 | H132: 計算式
C133: EMPJ,S,transport | D133: 排せつ物の運搬によるプロジェクト実施後排出量 | F133: =$F$134*$F$135*$F$136 -> 1.3651 | G133: tCO2/年 | H133: EMPJ,S, transport = FPJ,transport × HVPJ,transport × CEFPJ,transport
C134: FPJ,transport | D134: プロジェクト実施後の排せつ物の運搬における燃料使用量 | F134: =入力用シート!$E$34 -> 2 | G134: kL/年 | H134: ー
C135: HVPJ,transport | D135: プロジェクト実施後の排せつ物の運搬に使用する燃料の単位発熱量 | F135: =入力用シート!$E$94 -> 36.5 | G135: GJ/kL | H135: ー
C136: CEFPJ,transport | D136: プロジェクト実施後の排せつ物の運搬に使用する燃料の単位発熱量当たりの CO2 排出係数 | F136: =入力用シート!$E$95 -> 0.0187 | G136: tCO2/GJ | H136: ー
C138: ４．ベースライン排出量の考え方
C139: 記号 | D139: 定義 | F139: 数値 | G139: 単位 | H139: 計算式
C140: NBL,m,k | D140: ベースラインの排せつ管理区分 m において飼養した家畜種 k の平均飼養頭数 | G140: 頭 | H140: NBL,m,k × DBL,m,k = Σ(NPJ,n,k × DPJ,n,k) × NBefore,m,k × DBefore,m,k/Σ(NBefore,m,k × DBefore,m,k)
C141: DBL,m,k | D141: ベースラインの排せつ管理区分 m において家畜種 k を飼養した日数 | G141: 日 | H141: NBL,m,k × DBL,m,k = Σ(NPJ,n,k × DPJ,n,k) × NBefore,m,k × DBefore,m,k/Σ(NBefore,m,k × DBefore,m,k)
C142: NBL,m,k × DBL,m,k | D142: =IF(入力用シート!D36=0,"",入力用シート!D36) -> ー 搾乳牛(三産以上) | F142: =$F$38*$F$66*F158*$F$171/($F$157*$F$171) -> 13140 | G142: 頭・日
D143: =IF(入力用シート!D37=0,"",入力用シート!D37) -> ー 搾乳牛(二産) | F143: 0 | G143: 頭・日
D144: =IF(入力用シート!D38=0,"",入力用シート!D38) -> ー 搾乳牛(初産) | F144: 0 | G144: 頭・日
D145: =IF(入力用シート!D39=0,"",入力用シート!D39) -> ー 乾乳牛・未経産牛 | F145: 0 | G145: 頭・日
D146: =IF(入力用シート!D40=0,"",入力用シート!D40) -> ー 育成牛(7-24カ月) | F146: 0 | G146: 頭・日
D147: =IF(入力用シート!D41=0,"",入力用シート!D41) -> ー 育成牛(3-6カ月) | F147: 0 | G147: 頭・日
D148: =IF(入力用シート!D42=0,"",入力用シート!D42) ->  | F148: 0 | G148: 頭・日
D149: =IF(入力用シート!D43=0,"",入力用シート!D43) -> ー | F149: 0 | G149: 頭・日
D150: =IF(入力用シート!D44=0,"",入力用シート!D44) -> ー | F150: 0 | G150: 頭・日
D151: =IF(入力用シート!D45=0,"",入力用シート!D45) -> ー | F151: 0 | G151: 頭・日
D152: =IF(入力用シート!D46=0,"",入力用シート!D46) -> ー | F152: 0 | G152: 頭・日
D153: =IF(入力用シート!D47=0,"",入力用シート!D47) -> ー | F153: 0 | G153: 頭・日
D154: =IF(入力用シート!D48=0,"",入力用シート!D48) -> ー | F154: 0 | G154: 頭・日
C155: NPJ,n,k | D155: プロジェクト実施後の排せつ管理区分 n において飼養した家畜種 kの平均飼養頭数 | G155: 頭
C156: DPJ,n,k | D156: プロジェクト実施後の排せつ管理区分 n において家畜種 k を飼養した日数 | G156: 日
C157: NBefore,m,k | D157: ■ プロジェクト実施前の排せつ管理区分 m において飼養した家畜種 kの平均飼養頭数 | F157: =SUM(F158:F170) -> 100 | G157: 頭
D158: =IF(入力用シート!D36=0,"",入力用シート!D36) -> ー 搾乳牛(三産以上) | F158: =入力用シート!E36 -> 100 | G158: 頭
D159: =IF(入力用シート!D37=0,"",入力用シート!D37) -> ー 搾乳牛(二産) | F159: =入力用シート!E37 -> 0 | G159: 頭
D160: =IF(入力用シート!D38=0,"",入力用シート!D38) -> ー 搾乳牛(初産) | F160: =入力用シート!E38 -> 0 | G160: 頭
D161: =IF(入力用シート!D39=0,"",入力用シート!D39) -> ー 乾乳牛・未経産牛 | F161: =入力用シート!E39 -> 0 | G161: 頭
D162: =IF(入力用シート!D40=0,"",入力用シート!D40) -> ー 育成牛(7-24カ月) | F162: =入力用シート!E40 -> 0 | G162: 頭
D163: =IF(入力用シート!D41=0,"",入力用シート!D41) -> ー 育成牛(3-6カ月) | F163: =入力用シート!E41 -> 0 | G163: 頭
D164: =IF(入力用シート!D42=0,"",入力用シート!D42) ->  | F164: =入力用シート!E42 -> 0 | G164: 頭
D165: =IF(入力用シート!D43=0,"",入力用シート!D43) -> ー | F165: =入力用シート!E43 -> 0 | G165: 頭
D166: =IF(入力用シート!D44=0,"",入力用シート!D44) -> ー | F166: =入力用シート!E44 -> 0 | G166: 頭
D167: =IF(入力用シート!D45=0,"",入力用シート!D45) -> ー | F167: =入力用シート!E45 -> 0 | G167: 頭
D168: =IF(入力用シート!D46=0,"",入力用シート!D46) -> ー | F168: =入力用シート!E46 -> 0 | G168: 頭
D169: =IF(入力用シート!D47=0,"",入力用シート!D47) -> ー | F169: =入力用シート!E47 -> 0 | G169: 頭
D170: =IF(入力用シート!D48=0,"",入力用シート!D48) -> ー | F170: =入力用シート!E48 -> 0 | G170: 頭
C171: DBefore,m,k | D171: 事業実施前の排せつ管理区分 m において家畜種 k を飼養した平均飼養日数 | F171: =入力用シート!E49 -> 365 | G171: 日 | H171: ー
C173: ５．ベースライン排出量の算定
C174: 記号 | D174: 定義 | F174: 数値 | G174: 単位 | H174: 計算式
C175: EMBL | D175: ベースライン排出量 | F175: =F176+F177 -> 105.282236 | G175: tCO2e/年 | H175: EMBL = EMBL,M + EMBL,S
C176: EMBL,M | D176: ベースラインの主要排出量 | F176: =F181 -> 36.97953596 | G176: tCO2e/年 | H176: ー
C177: EMBL,S | D177: ベースラインの付随的な排出量 | F177: =F252 -> 68.3027 | G177: tCO2/年 | H177: ー
C179: ＜主要排出活動＞
C180: 記号 | D180: 定義 | F180: 数値 | G180: 単位 | H180: 計算式
C181: EMBL,M | D181: ベースラインの主要排出量 | F181: =F182+F183 -> 36.97953596 | G181: tCO2e/年 | H181: EM BL,M = EM BL,M ,CH4 + EM BL,M ,N2O
C182: EMBL,M,CH4 | D182: ベースラインの CH4 起源排出量 | F182: =F187 -> 5.1223005 | G182: tCO2e/年 | H182: ー
C183: EMBL,M,N2O | D183: ベースラインの N2O 起源排出量 | F183: =F223 -> 31.85723546 | G183: tCO2e/年 | H183: ー
C185: a) 家畜の排せつ物管理によるベースラインの CH4 起源排出量
C186: 記号 | D186: 定義 | F186: 数値 | G186: 単位 | H186: 計算式
C187: EMBL,CH4 | D187: ■ ベースラインの CH4 起源排出量 | F187: =IF($F$191="ふん尿分離",F188+F189,IF($F$191="ふん尿混合",F190,0)) -> 5.1223005 | G187: tCO2e/年 | H187: EMBL,CH4 = Σ(EFCH4,m,k × NBL,m,k × AMm,k/103 × DBL,m,k × CNm,k) × GWPCH4
E188: ー ふん | F188: =SUMPRODUCT($F$142:$F$154,$E$202:$E$214)*10^-3*F197*F217*$F$219 ->  | G188: tCO2e/年
E189: ー 尿 | F189: =SUMPRODUCT($F$142:$F$154,$F$202:$F$214)*10^-3*F198*F218*$F$219 -> 0.01443429 | G189: tCO2e/年
E190: ー ふん尿混合 | F190: =SUMPRODUCT($F$142:$F$154,$E$202:$E$214*F217+$F$202:$F$214*F218)*10^-3*F199*$F$219 -> 5.1223005 | G190: tCO2e/年
C191: m | D191: ■ ベースラインの排せつ物の管理区分 | F191: =入力用シート!E50 -> ふん尿混合 | G191: ー | H191: ー
E192: ー ふん | F192: =入力用シート!E51 -> 0
E193: ー 尿 | F193: =入力用シート!E52 -> 強制発酵
E194: ー ふん尿混合 | F194: =入力用シート!E53 -> 天日乾燥
C195: k | D195: 家畜の種類 | F195: =入力用シート!E15 -> 乳用牛 | G195: ー | H195: ー
C196: EFCH4,m,k | D196: ■ 家畜種 k の排せつ管理区分 m における CH4 排出係数 | H196: ー
E197: ー ふん | F197: =INDEX(条件1!D3:H12, MATCH($F192, 条件1!C3:C12, 0), MATCH(入力用シート!$E$15, 条件1!D2:H2, 0)) ->  | G197: tCH4/t 有機物
E198: ー 尿 | F198: =INDEX(条件1!D13:H18, MATCH(F193, 条件1!C13:C18, 0), MATCH(入力用シート!$E$15, 条件1!$D$2:$H$2, 0)) -> 0.00052 | G198: tCH4/t 有機物
E199: ー ふん尿混合 | F199: =INDEX(条件1!D19:H28, MATCH(F194, 条件1!C19:C28, 0), MATCH(入力用シート!$E$15, 条件1!$D$2:$H$2, 0)) -> 0.002 | G199: tCH4/t 有機物
C200: NBL,m,k | D200: ベースラインの排せつ管理区分 m において飼養した家畜種 k の平均飼養頭数 | G200: 頭 | H200: ー
C201: AMm,k | D201: ■ 排せつ管理区分 m において飼養した家畜種 k の 1 頭、1 日当たりの排せつ物量 | E201: ■ ふん | F201: ■ 尿 | H201: ー
D202: =IF(入力用シート!D36=0,"",入力用シート!D36) -> ー 搾乳牛(三産以上) | E202: =_xlfn.IFNA(INDEX(※2!$C$4:$C$27, MATCH($D202, ※2!$B$4:$B$27, 0)),0) -> 48.2 | F202: =_xlfn.IFNA(INDEX(※2!$D$4:$D$27, MATCH($D202, ※2!$B$4:$B$27, 0)),0) -> 16.9 | G202: kg/頭/日
D203: =IF(入力用シート!D37=0,"",入力用シート!D37) -> ー 搾乳牛(二産) | E203: =_xlfn.IFNA(INDEX(※2!$C$4:$C$27, MATCH($D203, ※2!$B$4:$B$27, 0)),0) -> 46.7 | F203: =_xlfn.IFNA(INDEX(※2!$D$4:$D$27, MATCH($D203, ※2!$B$4:$B$27, 0)),0) -> 17.1 | G203: kg/頭/日
D204: =IF(入力用シート!D38=0,"",入力用シート!D38) -> ー 搾乳牛(初産) | E204: =_xlfn.IFNA(INDEX(※2!$C$4:$C$27, MATCH($D204, ※2!$B$4:$B$27, 0)),0) -> 42.9 | F204: =_xlfn.IFNA(INDEX(※2!$D$4:$D$27, MATCH($D204, ※2!$B$4:$B$27, 0)),0) -> 18.7 | G204: kg/頭/日
D205: =IF(入力用シート!D39=0,"",入力用シート!D39) -> ー 乾乳牛・未経産牛 | E205: =_xlfn.IFNA(INDEX(※2!$C$4:$C$27, MATCH($D205, ※2!$B$4:$B$27, 0)),0) -> 28.4 | F205: =_xlfn.IFNA(INDEX(※2!$D$4:$D$27, MATCH($D205, ※2!$B$4:$B$27, 0)),0) -> 15.3 | G205: kg/頭/日
D206: =IF(入力用シート!D40=0,"",入力用シート!D40) -> ー 育成牛(7-24カ月) | E206: =_xlfn.IFNA(INDEX(※2!$C$4:$C$27, MATCH($D206, ※2!$B$4:$B$27, 0)),0) -> 23.2 | F206: =_xlfn.IFNA(INDEX(※2!$D$4:$D$27, MATCH($D206, ※2!$B$4:$B$27, 0)),0) -> 12.5 | G206: kg/頭/日
D207: =IF(入力用シート!D41=0,"",入力用シート!D41) -> ー 育成牛(3-6カ月) | E207: =_xlfn.IFNA(INDEX(※2!$C$4:$C$27, MATCH($D207, ※2!$B$4:$B$27, 0)),0) -> 15.9 | F207: =_xlfn.IFNA(INDEX(※2!$D$4:$D$27, MATCH($D207, ※2!$B$4:$B$27, 0)),0) -> 5.1 | G207: kg/頭/日
D208: =IF(入力用シート!D42=0,"",入力用シート!D42) ->  | E208: =_xlfn.IFNA(INDEX(※2!$C$4:$C$27, MATCH($D208, ※2!$B$4:$B$27, 0)),0) -> 0 | F208: =_xlfn.IFNA(INDEX(※2!$D$4:$D$27, MATCH($D208, ※2!$B$4:$B$27, 0)),0) -> 0 | G208: kg/頭/日
D209: =IF(入力用シート!D43=0,"",入力用シート!D43) -> ー | E209: =_xlfn.IFNA(INDEX(※2!$C$4:$C$27, MATCH($D209, ※2!$B$4:$B$27, 0)),0) -> 0 | F209: =_xlfn.IFNA(INDEX(※2!$D$4:$D$27, MATCH($D209, ※2!$B$4:$B$27, 0)),0) -> 0 | G209: kg/頭/日
D210: =IF(入力用シート!D44=0,"",入力用シート!D44) -> ー | E210: =_xlfn.IFNA(INDEX(※2!$C$4:$C$27, MATCH($D210, ※2!$B$4:$B$27, 0)),0) -> 0 | F210: =_xlfn.IFNA(INDEX(※2!$D$4:$D$27, MATCH($D210, ※2!$B$4:$B$27, 0)),0) -> 0 | G210: kg/頭/日
D211: =IF(入力用シート!D45=0,"",入力用シート!D45) -> ー | E211: =_xlfn.IFNA(INDEX(※2!$C$4:$C$27, MATCH($D211, ※2!$B$4:$B$27, 0)),0) -> 0 | F211: =_xlfn.IFNA(INDEX(※2!$D$4:$D$27, MATCH($D211, ※2!$B$4:$B$27, 0)),0) -> 0 | G211: kg/頭/日
D212: =IF(入力用シート!D46=0,"",入力用シート!D46) -> ー | E212: =_xlfn.IFNA(INDEX(※2!$C$4:$C$27, MATCH($D212, ※2!$B$4:$B$27, 0)),0) -> 0 | F212: =_xlfn.IFNA(INDEX(※2!$D$4:$D$27, MATCH($D212, ※2!$B$4:$B$27, 0)),0) -> 0 | G212: kg/頭/日
D213: =IF(入力用シート!D47=0,"",入力用シート!D47) -> ー | E213: =_xlfn.IFNA(INDEX(※2!$C$4:$C$27, MATCH($D213, ※2!$B$4:$B$27, 0)),0) -> 0 | F213: =_xlfn.IFNA(INDEX(※2!$D$4:$D$27, MATCH($D213, ※2!$B$4:$B$27, 0)),0) -> 0 | G213: kg/頭/日
D214: =IF(入力用シート!D48=0,"",入力用シート!D48) -> ー | E214: =_xlfn.IFNA(INDEX(※2!$C$4:$C$27, MATCH($D214, ※2!$B$4:$B$27, 0)),0) -> 0 | F214: =_xlfn.IFNA(INDEX(※2!$D$4:$D$27, MATCH($D214, ※2!$B$4:$B$27, 0)),0) -> 0 | G214: kg/頭/日
C215: DBL,m,k | D215: ベースラインの排せつ管理区分 m において家畜種 k を飼養した日数 | G215: 日/年 | H215: ー
C216: CNm,k | D216: ■ 排せつ管理区分 m において飼養した家畜種 k の排せつ物中に含まれる有機物含有率 | H216: ー
... 58 more rows

Sheet ←ここまで (hidden)

Sheet 条件1 (hidden)
C1: 我が国の排せつ物管理区分 | D1: CH4排出係数※1
A2: 分離状況 | C2: 管理区分 | D2: 乳用牛 | E2: 肉用牛 | F2: 豚 | G2: 採卵鶏 | H2: ブロイラー
A3: ふん尿分離 | B3: ふん | C3: 貯留 | D3: 0.0235 | E3: 0.016 | F3: 0.049 | G3: 0.0013 | H3: 0.0002
A4: ふん尿分離 | B4: ふん | C4: 天日乾燥 | D4: 0.002 | E4: 0.002 | F4: 0.002 | G4: 0.0014 | H4: 0.0014
A5: ふん尿分離 | B5: ふん | C5: 火力乾燥 | D5: 0 | E5: 0 | F5: 0 | G5: 0 | H5: 0
A6: ふん尿分離 | B6: ふん | C6: 強制発酵 | D6: 0.00052 | E6: 0.00054 | F6: 0.0008 | G6: 0.0008 | H6: 0.0008
A7: ふん尿分離 | B7: ふん | C7: 堆積発酵 | D7: 0.038 | E7: 0.0013 | F7: 0.0016 | G7: 0.0013 | H7: 0.0002
A8: ふん尿分離 | B8: ふん | C8: 焼却 | D8: 0.004 | E8: 0.004 | F8: 0.004 | G8: 0.004 | H8: 0.004
A9: ふん尿分離 | B9: ふん | C9: メタン発酵 | D9: 0.038 | E9: 0.0013 | F9: 0.0016 | G9: 0.0013 | H9: 0.0002
A10: ふん尿分離 | B10: ふん | C10: 産業廃棄物処理 | D10: 0.0235 | E10: 0.016 | F10: 0.049 | G10: 0.0013 | H10: 0.0002
A11: ふん尿分離 | B11: ふん | C11: 放牧 | D11: 0.00076 | E11: 0.00076 | G11: 0.0014 | H11: 0.0014
A12: ふん尿分離 | B12: ふん | C12: その他 | D12: 0.038 | E12: 0.004 | F12: 0.004 | G12: 0.004 | H12: 0.004
A13: ふん尿分離 | B13: 尿 | C13: 貯留 | D13: 0.0235 | E13: 0.016 | F13: 0.049 | G13: 0.0013 | H13: 0.0002
A14: ふん尿分離 | B14: 尿 | C14: 強制発酵 | D14: 0.00052 | E14: 0.00054 | F14: 0.00097
A15: ふん尿分離 | B15: 尿 | C15: 浄化 | D15: 0.003 | E15: 0.003 | F15: 0.0091
A16: ふん尿分離 | B16: 尿 | C16: メタン発酵 | D16: 0.038 | E16: 0.0013 | F16: 0.0016 | G16: 0.0013 | H16: 0.0002
A17: ふん尿分離 | B17: 尿 | C17: 産業廃棄物処理 | D17: 0.0235 | E17: 0.016 | F17: 0.049 | G17: 0.0013 | H17: 0.0002
A18: ふん尿分離 | B18: 尿 | C18: その他 | D18: =AVERAGE(D13:D17) -> 0.017704 | E18: =AVERAGE(E13:E17) -> 0.007368 | F18: 0.021934 | G18: 0.0013 | H18: 0.0002
A19: ふん尿混合 | C19: 貯留 | D19: 0.0235 | E19: 0.016 | F19: 0.049 | G19: 0.0013 | H19: 0.0002
A20: ふん尿混合 | C20: 天日乾燥 | D20: 0.002 | E20: 0.002 | F20: 0.002 | G20: 0.0014 | H20: 0.0014
A21: ふん尿混合 | C21: 火力乾燥 | D21: 0 | E21: 0 | F21: 0 | G21: 0 | H21: 0
A22: ふん尿混合 | C22: 強制発酵 | D22: 0.00052 | E22: 0.00054 | F22: 0.0008
A23: ふん尿混合 | C23: 堆積発酵 | D23: 0.038 | E23: 0.0013 | F23: 0.0016 | G23: 0.0013 | H23: 0.0002
A24: ふん尿混合 | C24: 浄化 | D24: 0.003 | E24: 0.003 | F24: 0.0091
A25: ふん尿混合 | C25: メタン発酵 | D25: 0.0302 | E25: 0.035 | F25: 0.036
A26: ふん尿混合 | C26: 産業廃棄物処理 | D26: 0.0235 | E26: 0.016 | F26: 0.049 | G26: 0.0013 | H26: 0.0002
A27: ふん尿混合 | C27: 放牧 | D27: 0.00076 | E27: 0.00076 | G27: 0.0014 | H27: 0.0014
A28: ふん尿混合 | C28: その他 | D28: 0.038 | E28: 0.035 | F28: 0.049

Sheet ※1 (hidden)
A1: 牛、豚、採卵鶏、ブロイラーの排せつ物管理に伴う CH4 排出係数（g-CH4/g 有機物）
A2: 処理区分 | B2: 乳用牛 | C2: 肉用牛 | D2: 豚 | E2: 採卵鶏 | F2: ブロイラー
A3: 貯留 | B3: 0.0235 | C3: 0.016 | D3: 0.049 | E3: 0.0013 | F3: 0.0002
A4: 天日乾燥 | B4: 0.002 | C4: 0.002 | D4: 0.002 | E4: 0.0014 | F4: 0.0014
A5: 火力乾燥 | B5: 0 | C5: 0 | D5: 0 | E5: 0 | F5: 0
A6: 強制発酵（ふん） | B6: 0.00052 | C6: 0.00054 | D6: 0.0008 | E6: 0.0008 | F6: 0.0008
A7: 堆積発酵 | B7: 0.038 | C7: 0.0013 | D7: 0.0016 | E7: 0.0013 | F7: 0.0002
A8: 焼却 | B8: 0.004 | C8: 0.004 | D8: 0.004 | E8: 0.004 | F8: 0.004
A9: 強制発酵（尿） | B9: 0.00052 | C9: 0.00054 | D9: 0.00097
A10: 強制発酵（ふん尿混合） | B10: 0.00052 | C10: 0.00054 | D10: 0.0008
A11: 浄化 | B11: 0.003 | C11: 0.003 | D11: 0.0091
A12: メタン発酵（ふん） | B12: 0.038 | C12: 0.0013 | D12: 0.0016 | E12: 0.0013 | F12: 0.0002
A13: メタン発酵（ふん尿混合） | B13: 0.0302 | C13: 0.035 | D13: 0.036
A14: 産業廃棄物処理 | B14: 0.0235 | C14: 0.016 | D14: 0.049 | E14: 0.0013 | F14: 0.0002
A15: 放牧 | B15: 0.00076 | C15: 0.00076 | E15: 0.0014 | F15: 0.0014
A16: その他（ふん） | B16: 0.038 | C16: 0.004 | D16: 0.004 | E16: 0.004 | F16: 0.004
A17: その他（ふん尿混合） | B17: 0.038 | C17: 0.035 | D17: 0.049

Sheet ※2 (hidden)
A1: 家畜種ごとの排せつ物排せつ量及び排せつ物中窒素量(2019)
A2: 家畜種 | C2: 排せつ物量 [kg/頭/日] | E2: 排せつ物中窒素量 [g-N/頭/日]
C3: ふん | D3: 尿 | E3: ふん | F3: 尿
A4: 乳用牛 | B4: ー 搾乳牛(三産以上) | C4: 48.2 | D4: 16.9 | E4: 194.7 | F4: 96.4
A5: 乳用牛 | B5: ー 搾乳牛(二産) | C5: 46.7 | D5: 17.1 | E5: 185.5 | F5: 104.5
A6: 乳用牛 | B6: ー 搾乳牛(初産) | C6: 42.9 | D6: 18.7 | E6: 163.6 | F6: 101
A7: 乳用牛 | B7: ー 乾乳牛・未経産牛 | C7: 28.4 | D7: 15.3 | E7: 85.2 | F7: 101.4
A8: 乳用牛 | B8: ー 育成牛(7-24カ月) | C8: 23.2 | D8: 12.5 | E8: 58.5 | F8: 71.1
A9: 乳用牛 | B9: ー 育成牛(3-6カ月) | C9: 15.9 | D9: 5.1 | E9: 24.9 | F9: 44.2
A10: 肉用牛 | B10: ー 繁殖雌牛(2歳以上) | C10: 18.2 | D10: 7.4 | E10: 61.8 | F10: 74.9
A11: 肉用牛 | B11: ー 繁殖雌牛(7カ月～2歳未満) | C11: 14.2 | D11: 6.8 | E11: 56.2 | F11: 70.6
A12: 肉用牛 | B12: ー 繁殖雌牛(3カ月～6カ月) | C12: 5.7 | D12: 3.4 | E12: 24.3 | F12: 54.3
A13: 肉用牛 | B13: ー 肥育牛・雄(１歳以上) | C13: 10.8 | D13: 7.1 | E13: 59.1 | F13: 71.9
A14: 肉用牛 | B14: ー 肥育牛・雄(7カ月～１歳未満) | C14: 10.3 | D14: 6.3 | E14: 51.3 | F14: 71.6
A15: 肉用牛 | B15: ー 肥育牛・雄(3カ月～6カ月) | C15: 3.1 | D15: 3 | E15: 20.7 | F15: 48.2
A16: 肉用牛 | B16: ー 肥育牛・雌(１歳以上) | C16: 11.2 | D16: 5.8 | E16: 46.4 | F16: 57.2
A17: 肉用牛 | B17: ー 肥育牛・雌(7カ月～１歳未満) | C17: 8.2 | D17: 5.4 | E17: 42.7 | F17: 60.4
A18: 肉用牛 | B18: ー 肥育牛・雌(3カ月～6カ月) | C18: 4.7 | D18: 3.1 | E18: 22 | F18: 51.6
A19: 肉用牛 | B19: ー 乳用種(7カ月以上) | C19: 14.6 | D19: 7.8 | E19: 61.3 | F19: 85.5
A20: 肉用牛 | B20: ー 乳用種(3カ月～6カ月) | C20: 8.2 | D20: 4 | E20: 31.8 | F20: 61.8
A21: 肉用牛 | B21: ー 交雑種(7カ月以上) | C21: 14.4 | D21: 7.7 | E21: 60.2 | F21: 83
A22: 肉用牛 | B22: ー 交雑種(3カ月～6カ月) | C22: 9.7 | D22: 4.2 | E22: 33.2 | F22: 65.8
A23: 豚 | B23: ー 肥育豚 | C23: 1.7 | D23: 3.9 | E23: 14.2 | F23: 25
A24: 豚 | B24: ー 繁殖豚 | C24: 2.2 | D24: 4.7 | E24: 19.8 | F24: 30.7
A25: 採卵鶏 | B25: ー 鶏 | C25: 0.059 | E25: 1.54 | F25: 1.54
A26: 採卵鶏 | B26: ー 成鶏 | C26: 0.136 | E26: 2.2
A27: ブロイラー | B27: ー ブロイラー | C27: 0.13 | E27: 1.87

Sheet ※2 (一時計算用_不使用) (hidden)
A1: 家畜種ごとの排せつ物排せつ量及び排せつ物中窒素量(2019)
A2: 家畜種 | D2: 排せつ物量 [kg/頭/日] | F2: 排せつ物中窒素量 [g-N/頭/日]
D3: ふん | E3: 尿 | F3: ふん | G3: 尿
A4: 乳用牛 | B4: 搾乳牛(三産以上) | C4: =入力用シート!E36:E41 -> 100 | D4: 48.2 | E4: 16.9 | F4: 194.7 | G4: 96.4
A5: 乳用牛 | B5: 搾乳牛(二産) | C5: 0 | D5: 46.7 | E5: 17.1 | F5: 185.5 | G5: 104.5
A6: 乳用牛 | B6: 搾乳牛(初産) | C6: 0 | D6: 42.9 | E6: 18.7 | F6: 163.6 | G6: 101
A7: 乳用牛 | B7: 乾乳牛・未経産牛 | C7: 0 | D7: 28.4 | E7: 15.3 | F7: 85.2 | G7: 101.4
A8: 乳用牛 | B8: 育成牛(7-24カ月) | C8: 0 | D8: 23.2 | E8: 12.5 | F8: 58.5 | G8: 71.1
A9: 乳用牛 | B9: 育成牛(3-6カ月) | C9: 0 | D9: 15.9 | E9: 5.1 | F9: 24.9 | G9: 44.2
A10: 乳用牛 | C10: 小計 | D10: =SUM($C$4 * D4:D9) -> 20530 | E10: =SUM($C$4 * E4:E9) -> 8560 | F10: =SUM($C$4 * F4:F9) -> 71240 | G10: =$C$4 * SUM(G4:G9) -> 51860
A11: 肉用牛 | B11: 繁殖雌牛(2歳以上) | C11: =入力用シート!E36:E48 -> 100 | D11: 18.2 | E11: 7.4 | F11: 61.8 | G11: 74.9
A12: 肉用牛 | B12: 繁殖雌牛(7カ月～2歳未満) | C12: 0 | D12: 14.2 | E12: 6.8 | F12: 56.2 | G12: 70.6
A13: 肉用牛 | B13: 繁殖雌牛(3カ月～6カ月) | C13: 0 | D13: 5.7 | E13: 3.4 | F13: 24.3 | G13: 54.3
A14: 肉用牛 | B14: 肥育牛・雄(１歳以上) | C14: 0 | D14: 10.8 | E14: 7.1 | F14: 59.1 | G14: 71.9
A15: 肉用牛 | B15: 肥育牛・雄(7カ月～１歳未満) | C15: 0 | D15: 10.3 | E15: 6.3 | F15: 51.3 | G15: 71.6
A16: 肉用牛 | B16: 肥育牛・雄(3カ月～6カ月) | C16: 0 | D16: 3.1 | E16: 3 | F16: 20.7 | G16: 48.2
A17: 肉用牛 | B17: 肥育牛・雌(１歳以上) | C17: 0 | D17: 11.2 | E17: 5.8 | F17: 46.4 | G17: 57.2
A18: 肉用牛 | B18: 肥育牛・雌(7カ月～１歳未満) | C18: 0 | D18: 8.2 | E18: 5.4 | F18: 42.7 | G18: 60.4
A19: 肉用牛 | B19: 肥育牛・雌(3カ月～6カ月) | C19: 0 | D19: 4.7 | E19: 3.1 | F19: 22 | G19: 51.6
A20: 肉用牛 | B20: 乳用種(7カ月以上) | C20: 0 | D20: 14.6 | E20: 7.8 | F20: 61.3 | G20: 85.5
A21: 肉用牛 | B21: 乳用種(3カ月～6カ月) | C21: 0 | D21: 8.2 | E21: 4 | F21: 31.8 | G21: 61.8
A22: 肉用牛 | B22: 交雑種(7カ月以上) | C22: 0 | D22: 14.4 | E22: 7.7 | F22: 60.2 | G22: 83
A23: 肉用牛 | B23: 交雑種(3カ月～6カ月) | C23: 0 | D23: 9.7 | E23: 4.2 | F23: 33.2 | G23: 65.8
A24: 肉用牛 | C24: 小計 | D24: =SUM($C$11 * D11:D23) -> 13330 | E24: =SUM($C$11 * E11:E23) -> 7200 | F24: =SUM($C$11 * F11:F23) -> 57100 | G24: =SUM($C$11 * G11:G23) -> 85680
A25: 豚 | B25: 肥育豚 | C25: =入力用シート!$E$36:$E$37 -> 100 | D25: 1.7 | E25: 3.9 | F25: 14.2 | G25: 25
A26: 豚 | B26: 繁殖豚 | C26: 0 | D26: 2.2 | E26: 4.7 | F26: 19.8 | G26: 30.7
A27: 豚 | C27: 小計 | D27: =SUM($C$25* D25:D26) -> 390 | E27: =SUM($C$25* E25:E26) -> 860 | F27: =SUM($C$25* F25:F26) -> 3400 | G27: =SUM($C$25* G25:G26) -> 5570
A28: 採卵鶏 | B28: 鶏 | C28: =入力用シート!$E$36:$E$37 -> 100 | D28: 0.059 | E28: 0 | F28: 1.54 | G28: 1.54
A29: 採卵鶏 | B29: 成鶏 | C29: 0 | D29: 0.136 | E29: 0 | F29: 2.2 | G29: 0
A30: 採卵鶏 | C30: 小計 | D30: =SUM($C$28* D28:D29) -> 19.5 | E30: =SUM($C$28* E28:E29) -> 0 | F30: =SUM($C$28* F28:F29) -> 374 | G30: =SUM($C$28* G28:G29) -> 154
A31: ブロイラー | B31: － | C31: =入力用シート!$E$36 -> 100 | D31: 0.13 | F31: 1.87
A32: ブロイラー | C32: 小計 | D32: =$C$31*D31 -> 13 | E32: 0 | F32: =$C$31*F31 -> 187 | G32: 0

Sheet ※3 (hidden)
A1: 家畜種ごとの排せつ物中の有機物含有率(湿ベース)
A2: 家畜種 | B2: 有機物含有率
B3: ふん | C3: 尿
A4: 乳用牛 | B4: 0.16 | C4: 0.005
A5: 肉用牛 | B5: 0.18 | C5: 0.02
A6: 豚 | B6: 0.2 | C6: 0.0014
A7: 採卵鶏 | B7: 0.15
A8: ブロイラー | B8: 0.15

Sheet ※4 (hidden)
A1: 牛、豚、採卵鶏、ブロイラーの排せつ物管理に伴うN2O排出係数（g-N2O/g 有機物）
A2: 処理区分 | B2: 乳用牛 | C2: 肉用牛 | D2: 豚 | E2: 採卵鶏 | F2: ブロイラー | I2: 処理区分 | K2: 乳用牛 | L2: 肉用牛 | M2: 豚 | N2: 採卵鶏 | O2: ブロイラー
A3: 貯留 | B3: 0.0002 | C3: 0 | D3: 0 | E3: 0.0054 | F3: 0.0008 | I3: ふん | J3: 貯留 | K3: 0.0002 | L3: 0 | M3: 0 | N3: 0.0054 | O3: 0.0008
A4: 天日乾燥 | B4: 0.02 | C4: 0.02 | D4: 0.02 | E4: 0.0033 | F4: 0.0033 | I4: ふん | J4: 天日乾燥 | K4: 0.02 | L4: 0.02 | M4: 0.02 | N4: 0.0033 | O4: 0.0033
A5: 火力乾燥 | B5: 0.02 | C5: 0.02 | D5: 0.02 | E5: 0.02 | F5: 0.02 | I5: ふん | J5: 火力乾燥 | K5: 0.02 | L5: 0.02 | M5: 0.02 | N5: 0.02 | O5: 0.02
A6: 強制発酵（ふん） | B6: 0.0025 | C6: 0.0025 | D6: 0.0016 | E6: 0.0016 | F6: 0.0016 | I6: ふん | J6: 強制発酵 | K6: 0.0025 | L6: 0.0025 | M6: 0.0016 | N6: 0.0016 | O6: 0.0016
A7: 堆積発酵 | B7: 0.024 | C7: 0.016 | D7: 0.025 | E7: 0.0054 | F7: 0.0008 | I7: ふん | J7: 堆積発酵 | K7: 0.024 | L7: 0.016 | M7: 0.025 | N7: 0.0054 | O7: 0.0008
A8: 焼却 | B8: 0.001 | C8: 0.001 | D8: 0.001 | E8: 0.001 | F8: 0.001 | I8: ふん | J8: 焼却 | K8: 0.001 | L8: 0.001 | M8: 0.001 | N8: 0.001 | O8: 0.001
A9: 強制発酵（尿） | B9: 0.006 | C9: 0.006 | D9: 0.006 | I9: ふん | J9: メタン発酵 | K9: 0.024 | L9: 0.016 | M9: 0.025 | N9: 0.0054 | O9: 0.0008
A10: 強制発酵（ふん尿混合） | B10: 0.006 | C10: 0.0025 | D10: 0.0016 | I10: ふん | J10: 産業廃棄物処理 | K10: 0.0002 | L10: 0 | M10: 0 | N10: 0.0054 | O10: 0.0008
A11: 浄化 | B11: 0.0288 | C11: 0.0288 | D11: 0.0287 | I11: ふん | J11: 放牧 | K11: 0.00684 | L11: 0.00684 | N11: 0.0033 | O11: 0.0033
A12: メタン発酵（ふん） | B12: 0.024 | C12: 0.016 | D12: 0.025 | E12: 0.0054 | F12: 0.0008 | I12: ふん | J12: その他 | K12: 0.024 | L12: 0.02 | M12: 0.025 | N12: 0.02 | O12: 0.02
A13: メタン発酵（ふん尿混合） | B13: 0.0015 | C13: 0.0015 | D13: 0.0015 | I13: 尿 | J13: 貯留 | K13: 0.0002 | L13: 0 | M13: 0 | N13: 0.0054 | O13: 0.0008
A14: 産業廃棄物処理 | B14: 0.0002 | C14: 0 | D14: 0 | E14: 0.0054 | F14: 0.0008 | I14: 尿 | J14: 強制発酵 | K14: 0.006 | L14: 0.006 | M14: 0.006
A15: 放牧 | B15: 0.00684 | C15: 0.00684 | E15: 0.0033 | F15: 0.0033 | I15: 尿 | J15: 浄化 | K15: 0.0288 | L15: 0.0288 | M15: 0.0287
A16: その他（ふん） | B16: 0.024 | C16: 0.02 | D16: 0.025 | E16: 0.02 | F16: 0.02 | I16: 尿 | J16: メタン発酵 | K16: 0.024 | L16: 0.016 | M16: 0.025 | N16: 0.0054 | O16: 0.0008
A17: その他（ふん尿混合） | B17: 0.0288 | C17: 0.0288 | D17: 0.0287 | I17: 尿 | J17: 産業廃棄物処理 | K17: 0.0002 | L17: 0 | M17: 0 | N17: 0.0054 | O17: 0.0008
I18: 尿 | J18: その他 | K18: =AVERAGE(K13:K17) -> 0.01184 | L18: =AVERAGE(L13:L17) -> 0.01016 | M18: 0.01194 | N18: 0.0054 | O18: 0.0008
I19: ふん尿混合 | J19: 貯留 | K19: 0.0002 | L19: 0 | M19: 0 | N19: 0.0054 | O19: 0.0008
I20: ふん尿混合 | J20: 天日乾燥 | K20: 0.02 | L20: 0.02 | M20: 0.02 | N20: 0.0033 | O20: 0.0033
I21: ふん尿混合 | J21: 火力乾燥 | K21: 0.02 | L21: 0.02 | M21: 0.02 | N21: 0.02 | O21: 0.02
I22: ふん尿混合 | J22: 強制発酵 | K22: 0.006 | L22: 0.0025 | M22: 0.0016
I23: ふん尿混合 | J23: 堆積発酵 | K23: 0.024 | L23: 0.016 | M23: 0.025 | N23: 0.0054 | O23: 0.0008
I24: ふん尿混合 | J24: 浄化 | K24: 0.0288 | L24: 0.0288 | M24: 0.0287
I25: ふん尿混合 | J25: メタン発酵 | K25: 0.0015 | L25: 0.0015 | M25: 0.0015
I26: ふん尿混合 | J26: 産業廃棄物処理 | K26: 0.0002 | L26: 0 | M26: 0 | N26: 0.0054 | O26: 0.0008
I27: ふん尿混合 | J27: 放牧 | K27: 0.00684 | L27: 0.00684 | N27: 0.0033 | O27: 0.0033
I28: ふん尿混合 | J28: その他 | K28: 0.0288 | L28: 0.0288 | M28: 0.0287

Sheet AG-002（モニタリング） (hidden)
A2: ６．モニタリング方法
A3: 1) 活動量のモニタリング
A4: モニタリング項目 | C4: モニタリング方法例 | D4: モニタリング頻度
A5: n | B5: プロジェクト実施後の排せつ物の管理区分 | C5: ・日本国温室効果ガスインベントリ報告書記載の区分を利用 ・生産記録、写真 | D5: 【要求頻度】 検証申請時に最新のものを使用
A6: k | B6: 家畜の種類 | C6: ・日本国温室効果ガスインベントリ報告書記載の区分を利用 | D6: 【要求頻度】 検証申請時に最新のものを使用
A7: NPJ,n,k | B7: プロジェクト実施後の管理区分 n において飼養した家畜種 k の平均飼養頭数（頭） | C7: ・生産記録、出荷記録で計測 | D7: 対象期間で累計
A8: DPJ,n,k | B8: プロジェクト実施後の排せつ管理区分 n において家畜種 k を飼養した日数（日/年） | C8: ・日報、生産記録で計測 | D8: 対象期間で累計
A9: FPJ,process | B9: プロジェクト実施後の排せつ物管理設備における燃料使用量（kL/年、t/年、m3/年等） | C9: ・燃料供給会社からの請求書をもとに算定 ・重量計による計測 | D9: 対象期間で累計
A10: ELPJ,process | B10: プロジェクト実施後の排せつ物管理設備における電力使用量（kWh/年） | C10: ・電力会社からの請求書をもとに算定 ・電力計による計測 | D10: 対象期間で累計
A11: FPJ,transport | B11: プロジェクト実施後の排せつ物の運搬における燃料使用量（kL/年） | C11: ・燃料供給会社からの請求書をもとに算定 ・重量計による計測 | D11: 対象期間で累計
A12: NBefore,m,k | B12: プロジェクト実施前の排せつ管理区分 m において飼養した家畜種 k の平均飼養頭数（頭） | C12: ・生産記録、出荷記録で計測 | D12: 対象期間で累計
A13: DBefore,m,k | B13: プロジェクト実施前の排せつ管理区分 m において家畜種 k を飼養した日数（日/年） | C13: ・日報、生産記録で計測 | D13: 対象期間で累計
A14: m | B14: ベースラインの排せつ物の管理区分 | C14: ・日本国温室効果ガスインベントリ報告書記載の区分を利用 ・生産記録、写真 | D14: 【要求頻度】 検証申請時に最新のものを使用
A15: FBL,process | B15: ベースラインの排せつ物管理設備における燃料使用量（kL/年、t/年、m3/年等） | C15: ・燃料供給会社からの請求書をもとに算定 ・重量計による計測 | D15: 対象期間で累計
A16: ELBL,process | B16: ベースラインの排せつ物管理設備における電力使用量（kWh/年） | C16: ・電力会社からの請求書をもとに算定 ・電力計による計測 | D16: 対象期間で累計
A17: FBL,transport | B17: ベースラインの排せつ物の運搬における燃料使用量（kL/年） | C17: ・燃料供給会社からの請求書をもとに算定 ・重量計による計測 | D17: 対象期間で累計
A19: 2) 係数のモニタリング
A20: モニタリング項目 | C20: モニタリング方法例 | D20: モニタリング頻度
A21: EFCH4,n,k | B21: 家畜種 k の排せつ管理区分 n の CH4 排出係数（tCH4/t 有機物） | C21: ・日本国温室効果ガスインベントリ報告書記載のデフォルト値を利用 | D21: 【要求頻度】 検証申請時に最新のものを使用
A22: AMn,k | B22: 排せつ管理区分 n において飼養した家畜種 k の 1頭、1 日当たりの排せつ物量（kg/頭/日） | C22: ・日本国温室効果ガスインベントリ報告書記載のデフォルト値を利用 | D22: 【要求頻度】 検証申請時に最新のものを使用
A23: CNn,k | B23: 排せつ管理区分 n において飼養した家畜種 k の排せつ物中に含まれる有機物含有率（%） | C23: ・日本国温室効果ガスインベントリ報告書記載のデフォルト値を利用 | D23: 【要求頻度】 検証申請時に最新のものを使用
A24: GWPCH4 | B24: CH4 の地球温暖化係数（tCO2/tCH4） | C24: ・デフォルト値を利用 | D24: 【要求頻度】 検証申請時に最新のものを使用
A25: EFN2O,n,k | B25: 排せつ管理区分 n の N2O排出係数（tN2O-N/tN） | C25: ・日本国温室効果ガスインベントリ報告書記載のデフォルト値を利用 | D25: 【要求頻度】 検証申請時に最新のものを使用
A26: MNn,k | B26: 排せつ管理区分 n において飼養した家畜種 k の 1頭、1 日当たりの排せつ物中の窒素量（gN/頭/日） | C26: ・日本国温室効果ガスインベントリ報告書記載のデフォルト値を利用 | D26: 【要求頻度】 検証申請時に最新のものを使用
A27: GWPN2O | B27: N2O の地球温暖化係数（tCO2/tN2O） | C27: ・デフォルト値を利用 | D27: 【要求頻度】 検証申請時に最新のものを使用
A28: HVPJ, process | B28: プロジェクト実施後の排せつ物管理設備で使用する 燃料の単位発熱量 （GJ/kL, GJ/t, GJ/ m3等） | C28: ・デフォルト値を利用* | D28: 【要求頻度】 検証申請時に最新のものを使用
C29: ・ただし、固体燃料又は都市ガスを使用する場合には、供給会社提供値を利用 | D29: 【要求頻度】 固体燃料：仕入れ単位ごと 都市ガス：供給元変更ごと
A30: CEFPJ,process,fuel | B30: プロジェクト実施後において排せつ物管理設備で使用する燃料の単位発熱量当たりの CO2排出係数（tCO2/GJ） | C30: ・デフォルト値を利用* | D30: 【要求頻度】 検証申請時に最新のものを使用
C31: ・ただし、固体燃料又は都市ガスを使用する場合には、供給会社提供値を利用 | D31: 【要求頻度】 固体燃料：仕入れ単位ごと 都市ガス：供給元変更ごと
A32: CEFelectricity,t | B32: 電力の CO2 排出係数（tCO2/kWh) | C32: ・デフォルト値を利用 CEFelectricity,t = Cmo･(1-f (t)) + Ca(t)･f (t) ここで、 t : 電力需要変化以降の時間（プロジェクト開始日以降の経過年） Cmo : 限界電源 CO2 排出係数 Ca(t) : t 年に対応する全電源 CO2 排出係数 f (t) : 移行関数 0 [0≦t<1 年] f (t) = 0.5 [1 年≦t<2.5 年] 1 [2.5 年≦t] ・プロジェクト実施者からの申請に基づき、CEFelectricity,tとして全電源 CO2 排出係数を利用することができる | D32: 【要求頻度】 検証申請時に最新のものを使用
A33: HVPJ,transport | B33: プロジェクト実施後の排せつ物の運搬に使用する燃料の単位発熱量（GJ/kL） | C33: ・デフォルト値を利用* | D33: 【要求頻度】 検証申請時に最新のものを使用
A34: CEFPJ,transport | B34: プロジェクト実施後の排せつ物の運搬に使用する燃料の単位発熱量当たりの CO2 排出係数（tCO2/GJ） | C34: ・デフォルト値を利用* | D34: 【要求頻度】 検証申請時に最新のものを使用
A35: HVBL,process | B35: ベースラインの排せつ物管理設備で使用する燃料の単位発熱量（ GJ/kL, GJ/t, GJ/ m3等） | C35: ・デフォルト値を利用* | D35: 【要求頻度】 検証申請時に最新のものを使用
C36: ・ただし、固体燃料又は都市ガスを使用する場合には、供給会社提供値を利用 | D36: 【要求頻度】 固体燃料：仕入れ単位ごと 都市ガス：供給元変更ごと
A37: CEFBL,process,fuel | B37: ベースラインにおいて排せつ物管理設備で使用する燃料の単位発熱量当たり の CO2 排出係数（tCO2/GJ） | C37: ・デフォルト値を利用* | D37: 【要求頻度】 検証申請時に最新のものを使用
C38: ・ただし、固体燃料又は都市ガスを使用する場合には、供給会社提供値を利用 | D38: 【要求頻度】 固体燃料：仕入れ単位ごと 都市ガス：供給元変更ごと
A39: HVBL,transport | B39: ベースラインの排せつ物の運搬に使用する燃料の単位発熱量（GJ/kL） | C39: ・デフォルト値を利用* | D39: 【要求頻度】 検証申請時に最新のものを使用
A40: CEFBL,transport | B40: ベースラインの排せつ物の運搬に使用する燃料の単位発熱量当たりの CO2排出係数（tCO2/GJ） | C40: ・デフォルト値を利用* | D40: 【要求頻度】 検証申請時に最新のものを使用
A41: * 化石燃料の単位発熱量及び排出係数は、供給会社からの提供値又は実測により把握することもできる。この場合、「モニタリング・算定規程」に示す要求頻度を満たしてモニタリングを実施すること。
A44: ７．付記
A45: 附属書 A：自家用発電機による発電電力を用いる場合の取扱いについて（要求事項）
A46: 1) 活動量のモニタリング
A47: モニタリング項目 | C47: モニタリング方法例 | D47: モニタリング頻度
A48: Fgene | B48: 自家用発電機に投入される燃料使用量（t/年, kL/年, Nm3/年等） | C48: ・燃料供給会社からの請求書をもとに算定 ・燃料計による計測 | D48: 対象期間で累計
A49: ELgene | B49: 自家用発電機の発電電力量（kWh/年） | C49: ・電力計による計測 | D49: 対象期間で累計
A51: 2) 係数のモニタリング
A52: モニタリング項目 | C52: モニタリング方法例 | D52: モニタリング頻度
A53: HVgene,fuel | B53: 自家用発電機に投入される燃料の単位発熱量（GJ/t, GJ/kL, GJ/Nm3等） | C53: ・デフォルト値を利用* | D53: 【要求頻度】 検証申請時に最新のものを使用
C54: ・ただし、固体燃料又は都市ガスを使用する場合には、供給会社提供値を利用 | D54: 【要求頻度】 固体燃料：仕入れ単位ごと 都市ガス：供給元変更ごと
A55: CEFgene,fuel | B55: 自家用発電機に投入される燃料の CO2排出係数（tCO2/GJ） | C55: ・デフォルト値を利用* | D55: 【要求頻度】 検証申請時に最新のものを使用
C56: ・ただし、固体燃料又は都市ガスを使用する場合には、供給会社提供値を利用 | D56: 【要求頻度】 固体燃料：仕入れ単位ごと 都市ガス：供給元変更ごと
A57: * 化石燃料の単位発熱量及び排出係数は、供給会社からの提供値又は実測により把握することもできる。この場合、「モニタリング・算定規程」に示す要求頻度を満たしてモニタリングを実施すること。

Sheet AG-002 （計算方法） (hidden)
A2: １．適用条件 | B2: 計算式記載なし
A4: ２．排出削減量の算定
A5: 記号 | B5: 定義 | C5: 数値 | D5: 単位 | E5: 計算式 | F5: 備考
A6: ER | B6: 排出削減量 | D6: tCO2e /年 | E6: ER = EMBL − EMPJ | F6: ー
A7: EMBL | B7: ベースライン排出量 | D7: tCO2e /年 | E7: ー | F7: ー
A8: EMPJ | B8: プロジェクト実施後排出量 | D8: tCO2e /年 | E8: ー | F8: ー
A11: 3．プロジェクト実施後排出量の算定
A12: 記号 | B12: 定義 | C12: 数値 | D12: 単位 | E12: 計算式 | F12: 備考
A13: EMPJ | B13: プロジェクト実施後排出量 | D13: tCO2e/年 | E13: EMPJ = EMPJ,M + EMPJ,S | F13: ー
A14: EMPJ,M | B14: プロジェクト実施後の主要排出量 | D14: tCO2e/年 | E14: ー | F14: ー
A15: EMPJ,S | B15: プロジェクト実施後の付随的な排出量 | D15: tCO2/年 | E15: ー | F15: ー
A17: ＜主要排出活動＞
A18: 記号 | B18: 定義 | C18: 数値 | D18: 単位 | E18: 計算式 | F18: 備考
A19: EMPJ,M | B19: プロジェクト実施後の主要排出量 | D19: tCO2e/年 | E19: EMPJ,M = EMPJ,M ,CH4 + EMPJ,M ,N2O | F19: ー
A20: EMPJ,M,CH4 | B20: プロジェクト実施後の CH4 起源排出量 | D20: tCO2e/年 | E20: ー | F20: ー
A21: EMPJ,M,N2O | B21: プロジェクト実施後の N2O 起源排出量 | D21: tCO2e/年 | E21: ー | F21: ー
A23: a) 家畜の排せつ物管理によるプロジェクト実施後の CH4 起源排出量
A24: 記号 | B24: 定義 | C24: 数値 | D24: 単位 | E24: 計算式 | F24: 備考
A25: EMPJ,M,CH4 | B25: プロジェクト実施後の CH4 起源排出量 | D25: tCO2e/年 | E25: EMPJ,M,CH4 = Σ(EFCH4,n,k × NPJ,n,k × AMn,k/103 × DPJ,n,k × CNCH4,n,k) × GWPCH4 | F25: ー
A26: n | B26: プロジェクト実施後の排せつ物の管理区分 | D26: ー | E26: ー | F26: プロジェクト実施後の排せつ物の管理区分（n）及び家畜の種類（k）は、日本温室効果ガスインベントリ報告書に基づく。各管理区分の概要については、6．モニタリング方法を参照。
A27: k | B27: 家畜の種類 | D27: ー | E27: ー | F27: プロジェクト実施後の排せつ物の管理区分（n）及び家畜の種類（k）は、日本温室効果ガスインベントリ報告書に基づく。各管理区分の概要については、6．モニタリング方法を参照。
A28: EFCH4,n,k | B28: 家畜種 k の排せつ管理区分 n の CH4 排出係数 | D28: tCH4/t 有機物 | E28: ー | F28: ー
A29: NPJ,n,k | B29: プロジェクト実施後の排せつ管理区分 n において飼養した家畜種 k の平均飼養頭数 | D29: 頭 | E29: ー | F29: ー
A30: AMn,k | B30: 排せつ管理区分 n において飼養した家畜種 k の 1 頭、1 日当たりの 排せつ物量 | D30: kg/頭/日 | E30: ー | F30: ー
A31: DPJ,n,k | B31: プロジェクト実施後の排せつ管理区分 n において家畜種 k を飼養し た日数 | D31: 日/年 | E31: ー | F31: ー
A32: CNn,k | B32: 排せつ管理区分 n において飼養した家畜種 k の排せつ物中に含まれ る有機物含有率 | D32: % | E32: ー | F32: ー
A33: GWPCH4 | B33: CH4 の地球温暖化係数 | D33: tCO2/tCH4 | E33: ー | F33: ー
A35: b) 家畜の排せつ物管理によるプロジェクト実施後の N2O 起源排出量
A36: 記号 | B36: 定義 | C36: 数値 | D36: 単位 | E36: 計算式 | F36: 備考
A37: EMPJ,M,N2O | B37: プロジェクト実施後の N2O 起源排出量 | D37: tCO2e/年 | E37: EMPJ,M,N20 = Σ(EFN20,n,k × NPJ,n,k × MNn,k/106 × DPJ,n,k) × 44/28 × GWPN20 | F37: ー
A38: n | B38: プロジェクト実施後の排せつ物の管理区分 | D38: ー | E38: ー | F38: プロジェクト実施後の排せつ物の管理区分（n）及び家畜の種類（k）は、日本温室効果ガスインベントリ報告書に基づく。各管理区分の概要については、6．モニタリング方法を参照。
A39: k | B39: 家畜の種類 | D39: ー | E39: ー | F39: プロジェクト実施後の排せつ物の管理区分（n）及び家畜の種類（k）は、日本温室効果ガスインベントリ報告書に基づく。各管理区分の概要については、6．モニタリング方法を参照。
A40: EFN2O,n,k | B40: 家畜種 k の排せつ管理区分 n の N2O 排出係数 | D40: tN2O-N/tN | E40: ー | F40: ー
A41: NPJ,n,k | B41: プロジェクト実施後の排せつ管理区分 n において飼養した家畜種 k の平均飼養頭数 | D41: 頭 | E41: ー | F41: ー
A42: MNn,k | B42: 排せつ管理区分 n において飼養した家畜種 k の 1 頭、1 日当たりの 排せつ物中の窒素量 | D42: gN/頭/日 | E42: ー | F42: ー
A43: DPJ,n,k | B43: プロジェクト実施後の排せつ管理区分 n において家畜種 k を飼養し た日数 | D43: 日/年 | E43: ー | F43: ー
A44: 44/28 | B44: N2O 中に含まれる窒素重量（tN2O-N）を N2O 重量（tN2O）に変 換するための係数 | D44: ー | E44: ー | F44: ー
A45: GWPN2O | B45: N2O の地球温暖化係数 | D45: tCO2/tN2O | E45: ー | F45: ー
A47: ＜付随的な排出活動＞
A48: 記号 | B48: 定義 | C48: 数値 | D48: 単位 | E48: 計算式 | F48: 備考
A49: EMPJ,S | B49: プロジェクト実施後の付随的な排出量 | D49: tCO2/年 | E49: EMPJ ,S = EMPJ ,S , process + EMPJ ,S ,transport | F49: ー
A50: EMPJ,S,process | B50: 排せつ物管理設備の使用によるプロジェクト実施後排出量 | D50: tCO2/年 | E50: ー | F50: ー
A51: EMPJ,S,transport | B51: 排せつ物の運搬によるプロジェクト実施後排出量 | D51: tCO2/年 | E51: ー | F51: ー
A53: c) 排せつ物管理設備の使用によるプロジェクト実施後排出量
A54: c-1) 化石燃料を使用する場合 | E54: FPJ,process,fuel?
A55: 記号 | B55: 定義 | C55: 数値 | D55: 単位 | E55: 計算式 | F55: 備考
A56: EMPJ,S,process | B56: 排せつ物管理設備の使用によるプロジェクト実施後排出量 | D56: tCO2/年 | E56: EMPJ ,S , process = FPJ , process × HVPJ , process ×CEFPJ , process | F56: ー
A57: FPJ,process,fuel | B57: プロジェクト実施後の排せつ物管理設備における燃料使用量 | D57: kL/年、t/年、m3/年等 | E57: ー | F57: ー
A58: HVPJ,process,fuel | B58: プロジェクト実施後の排せつ物管理設備で使用する燃料の単位発熱量 | D58: GJ/kL, GJ/t, GJ/m3 等 | E58: ー | F58: ー
A60: c-2) 電力を使用する場合
A61: 記号 | B61: 定義 | C61: 数値 | D61: 単位 | E61: 計算式 | F61: 備考
A62: EMPJ,S,process | B62: 排せつ物管理設備の使用によるプロジェクト実施後排出量 | D62: tCO2/年 | E62: EMPJ ,S , process = ELPJ , process × CEFelectricity,t | F62: ー
A63: ELPJ,process | B63: プロジェクト実施後の排せつ物管理設備における電力使用量 | D63: kWh/年 | E63: ー | F63: ー
A64: CEFelectricity,t | B64: 電力の CO2 排出係数 | D64: tCO2/kWh | E64: ー | F64: ー
A66: d) 排せつ物の運搬における排出量
A67: 記号 | B67: 定義 | C67: 数値 | D67: 単位 | E67: 計算式 | F67: 備考
A68: EMPJ,S,transport | B68: 排せつ物の運搬によるプロジェクト実施後排出量 | D68: tCO2/年 | E68: EMPJ,S, transport = FPJ,transport × HVPJ,transport × CEFPJ,transport | F68: 排せつ物の運搬によるプロジェクト実施後排出量（EMPJ,S,transport）の算定に当たっては、燃費法又はトンキロ法を使用してもよい。燃費法及びトンキロ法の詳細については「モニタリング・算定規程」の別冊を参照すること。
A69: FPJ,transport | B69: プロジェクト実施後の排せつ物の運搬における燃料使用量 | D69: kL/年 | E69: ー | F69: ー
A70: HVPJ,transport | B70: プロジェクト実施後の排せつ物の運搬に使用する燃料の単位発熱量 | D70: GJ/kL | E70: ー | F70: ー
A71: CEFPJ,transport | B71: プロジェクト実施後の排せつ物の運搬に使用する燃料の単位発熱量当たりの CO2 排出係数 | D71: tCO2/GJ | E71: ー | F71: ー
A74: ４．ベースライン排出量の考え方
A75: 記号 | B75: 定義 | C75: 数値 | D75: 単位 | E75: 計算式 | F75: 備考
A76: NBL,m,k | B76: ベースラインの排せつ管理区分 m において飼養した家畜種 k の平均飼養頭数 | D76: 頭 | E76: NBL,m,k × DBL,m,k = Σ(NPJ,n,k × DPJ,n,k) × NBefore,m,k × DBefore,m,k/Σ(NBefore,m,k × DBefore,m,k) | F76: ー
A77: DBL,m,k | B77: ベースラインの排せつ管理区分 m において家畜種 k を飼養した日数 | D77: 日 | E77: NBL,m,k × DBL,m,k = Σ(NPJ,n,k × DPJ,n,k) × NBefore,m,k × DBefore,m,k/Σ(NBefore,m,k × DBefore,m,k) | F77: ー
A78: NPJ,n,k | B78: プロジェクト実施後の排せつ管理区分 n において飼養した家畜種 k の平均飼養頭数 | D78: 頭 | E78: ー | F78: ー
A79: DPJ,n,k | B79: プロジェクト実施後の排せつ管理区分 n において家畜種 k を飼養し た日数 | D79: 日 | E79: ー | F79: ー
A80: NBefore,m,k | B80: プロジェクト実施前の排せつ管理区分 m において飼養した家畜種 k の平均飼養頭数 | D80: 頭 | E80: ー | F80: ー
A81: DBefore,m,k | B81: 事業実施前の排せつ管理区分 m において家畜種 k を飼養した平均飼 養日数 | D81: 日 | E81: ー | F81: ー
A84: ５．ベースライン排出量の算定
A85: ＜主要排出活動＞
A86: 記号 | B86: 定義 | C86: 数値 | D86: 単位 | E86: 計算式 | F86: 備考
A87: EMBL,M | B87: ベースラインの主要排出量 | D87: tCO2e/年 | E87: EM BL,M = EM BL,M ,CH4 + EM BL,M ,N2O | F87: ー
A88: EMBL,M,CH4 | B88: ベースラインの CH4 起源排出量 | D88: tCO2e/年 | E88: ー | F88: ー
A89: EMBL,M,N2O | B89: ベースラインの N2O 起源排出量 | D89: tCO2e/年 | E89: ー | F89: ー
A91: a) 家畜の排せつ物管理によるベースラインの CH4 起源排出量
A92: 記号 | B92: 定義 | C92: 数値 | D92: 単位 | E92: 計算式 | F92: 備考
A93: EMBL,CH4 | B93: ベースラインの CH4 起源排出量 | D93: tCO2e/年 | E93: EMBL,CH4 = Σ(EFCH4,m,k × NBL,m,k × AMm,k/103 × DBL,m,k × CNm,k) × GWPCH4 | F93: ー
A94: m | B94: ベースラインの排せつ物の管理区分 | D94: ー | E94: ー | F94: ー
A95: k | B95: 家畜の種類 | D95: ー | E95: ー | F95: ー
A96: EFCH4,m,k | B96: 家畜種 k の排せつ管理区分 m における CH4 排出係数 | D96: tCH4/t 有機物 | E96: ー | F96: ー
A97: NBL,m,k | B97: ベースラインの排せつ管理区分 m において飼養した家畜種 k の平均 飼養頭数 | D97: 頭 | E97: ー | F97: ー
A98: AMm,k | B98: 排せつ管理区分 m において飼養した家畜種 k の 1 頭、1 日当たりの 排せつ物量 | D98: kg/頭/日 | E98: ー | F98: ー
A99: DBL,m,k | B99: ベースラインの排せつ管理区分 m において家畜種 k を飼養した日数 | D99: 日/年 | E99: ー | F99: ー
A100: CNm,k | B100: 排せつ管理区分 m において飼養した家畜種 k の排せつ物中に含まれ る有機物含有率 | D100: % | E100: ー | F100: ー
A101: GWPCH4 | B101: CH4 の地球温暖化係数 | D101: tCO2/tCH4 | E101: ー | F101: ー
A103: b) 家畜の排せつ物管理によるベースラインの N2O 起源排出量
A104: 記号 | B104: 定義 | C104: 数値 | D104: 単位 | E104: 計算式 | F104: 備考
A105: EMBL,N2O | B105: ベースラインの N2O 起源排出量 | D105: tCO2e/年 | E105: EMBL,N2O = Σ(EFN2O,m,k × NBL,m,k × MNm,k/106 × DBL,m,k) × 44/28 × GWPN2O | F105: ー
A106: m | B106: ベースラインの排せつ物の管理区分 | D106: ー | E106: ー | F106: ー
A107: k | B107: 家畜の種類 | D107: ー | E107: ー | F107: ー
A108: EFN2O,m,k | B108: 家畜種 k の排せつ管理区分 m の N2O 排出係数 | D108: tN2O-N/tN | E108: ー | F108: ー
A109: NBL,m,k | B109: ベースラインの排せつ管理区分 m において飼養した家畜種 k の平均 飼養頭数 | D109: 頭 | E109: ー | F109: ー
A110: MNm,k | B110: 排せつ管理区分 m において飼養した家畜種 k の 1 頭、1 日当たりの 排せつ物中の窒素量 | D110: gN/頭/日 | E110: ー | F110: ー
A111: DBL,m,k | B111: ベースラインの排せつ管理区分 m において家畜種 k を飼養した日数 | D111: 日/年 | E111: ー | F111: ー
A112: 44/28 | B112: N2O 中に含まれる窒素重量（tN2O-N）を N2O 重量（tN2O）に変 換するための係数 | D112: ー | E112: ー | F112: ー
A113: GWPN2O | B113: N2O の地球温暖化係数 | D113: tCO2/tN2O | E113: ー | F113: ー
A115: ＜付随的な排出活動＞
A116: 記号 | B116: 定義 | C116: 数値 | D116: 単位 | E116: 計算式 | F116: 備考
A117: EMBL,S | B117: ベースラインの付随的な排出量 | D117: tCO2/ | E117: EM BL,S = EM BL,S , process + EM BL,S ,transport | F117: ー
A118: EMBL,S,process | B118: 排せつ物管理設備の使用によるベースライン排出量 | D118: tCO2/ | E118: ー | F118: ー
A119: EMBL,S,transport | B119: 排せつ物の運搬によるベースライン排出量 | D119: tCO2/ | E119: ー | F119: ー
A121: c) 排せつ物管理設備の使用によるプロジェクト実施後排出量
A122: c-1) 化石燃料を使用する場合
A123: 記号 | B123: 定義 | C123: 数値 | D123: 単位 | E123: 計算式 | F123: 備考
A124: EMBL,S,process | B124: 排せつ物管理設備の使用によるベースライン排出量 | D124: tCO2/年 | E124: EMBL,S , process = FBL, process × HVBL, process ×CEFBL, process | F124: ー
A125: FBL,process,fuel | B125: ベースラインの排せつ物管理設備における燃料使用量 | D125: kL/年、t/年、m3/年等 | E125: ー | F125: ー
A126: HVBL,process,fuel | B126: ベースラインの排せつ物管理設備で使用する燃料の単位 発熱量 | D126: GJ/kL, GJ/t, GJ/ m3 等 | E126: ー | F126: ー
A128: c-2) 電力を使用する場合
A129: 記号 | B129: 定義 | C129: 数値 | D129: 単位 | E129: 計算式 | F129: 備考
A130: EMBL,S,process | B130: 排せつ物管理設備の使用によるベースライン排出量 | D130: tCO2/年 | E130: EMBL,S , process = ELBL, process × CEFelectricity,t | F130: ー
A131: ELBL,process | B131: ベースラインの排せつ物管理設備における電力使用量 | D131: kWh/年 | E131: ー | F131: ー
A132: CEFelectricity,t | B132: 電力の CO2 排出係数 | D132: tCO2/kWh | E132: ー | F132: ー
A134: d) 排せつ物の運搬によるベースライン排出量
A135: 記号 | B135: 定義 | C135: 数値 | D135: 単位 | E135: 計算式 | F135: 備考
A136: EMBL,S,transport | B136: 排せつ物の運搬によるベースライン排出量 | D136: tCO2/年 | E136: EMBL,S ,transport = FBL,transport × HVBL,transport × CEFBL,transport | F136: 排せつ物の運搬によるベースライン排出量（EMBL,S,transport）の算定に当たっては、燃費法又はトンキロ法を使用してもよい。燃費法及びトンキロ法の詳細については「モニタリング・算定規程」の別冊を参照すること。
A137: FBL,transport | B137: ベースラインの排せつ物の運搬における燃料使用量 | D137: kL/年 | E137: ー | F137: ー
A138: HVBL,transport | B138: ベースラインの排せつ物の運搬に使用する燃料の単位発 熱量 | D138: GJ/kL | E138: ー | F138: ー
A139: CEFBL,transport | B139: ベースラインの排せつ物の運搬に使用する燃料の単位発 熱量当たりの CO2 排出係数 | D139: tCO2/GJ | E139: ー | F139: ー
A142: ７．付記
A143: 附属書 A：自家用発電機による発電電力を用いる場合の取扱いについて（要求事項）
A144: 記号 | B144: 定義 | C144: 数値 | D144: 単位 | E144: 計算式 | F144: 備考
A145: CEFelectricity,t | B145: 電力の CO2 排出係数 | D145: tCO2/kWh | E145: CEFelectricity,t = Fgene × HVgene,fuel/ELgene × CEFgene,fuel | F145: ー
A146: Fgene | B146: 自家用発電機に投入される燃料使用量 | D146: t/年, kL/年, Nm3/年等 | E146: ー | F146: ー
A147: HVgene,fuel | B147: 自家用発電機に投入される燃料の単位発熱量 | D147: GJ/t, GJ/kL, GJ/Nm3等 | E147: ー | F147: ー
A148: ELgene | B148: 自家用発電機の発電電力量 | D148: kWh/年 | E148: ー | F148: ー
A149: CEFgene,fuel | B149: 自家用発電機に投入される燃料の CO2 排出係数 | D149: tCO2/GJ | E149: ー | F149: ー

Sheet 方法論・認証実績一覧表 (hidden)
A2: J-クレジットの農業分野の方法論及び認証実績一覧表
A4: 方法論No. | B4: 方法論 | C4: 削減方法 | D4: 適用条件 | E4: ベースライン排出量の考え方 | F4: 主なモニタリング項目 | G4: 適用条件 | H4: J-クレジット認証実績（通常型） | L4: J-クレジット認証実績（プログラム型）
H5: 認証申請日 | I5: プロジェクト実施者 | J5: プロジェクト概要 | K5: 認証量 | L5: 認証申請日 | M5: 運営・管理者 | N5: プロジェクト概要 | O5: 認証量
A6: AG-001 | B6: 牛・豚・ブロイラーへのアミノ酸バランス改善飼料の給餌 | C6: 慣用飼料に代えてアミノ酸バランス改善飼料を給餌することにより、排せつ物管理からのN2O排出量を抑制する。 | D6: ① プロジェクト実施前において、慣用飼料給餌量が、牛・豚は「日本飼養標準」の1.2倍、ブロイラーは品種ごとに定められた「栄養推奨値」の1.1倍を上回らないこと。 ② プロジェクト実施後において、慣用飼料のCP含有率（％）から1～3％引き下げたCP含有率のアミノ酸バランス改善飼料を給餌し、牛・豚はその給餌量が「日本飼養標準」の1.2倍、ブロイラーは品種毎に定められた「栄養推奨値」の1.1倍を上回らないこと。 ③ 排せつ物の処理方法は「貯留、天日乾燥、火力乾燥、炭化処理、強制発酵、堆積発酵、焼却、浄化、メタン発酵、産業廃棄物処理、放牧又はその他」のいずれかであること。 ④ アミノ酸バランス改善飼料を給餌する家畜は乳用牛・肉用牛・肥育豚・ブロイラーであること。 ⑤ ブロイラーへの給餌について、プロジェクト実施後の1日１羽あたりのCPの給餌量が、プロジェクト前より増加しないこと。 | E6: 乳用牛・肉用牛・肥育豚・ブロイラーをアミノ酸バランス改善飼料ではなく、慣用飼料で使用した場合に想定される温室効果ガス排出量 | F6: • 排せつ物の管理区分 • 乳用牛・肉用牛・肥育豚の平均飼養頭数及び飼養日数、ブロイラーの平均飼養羽数及び飼養日数 • 慣用飼料及びアミノ酸バランス改善飼料のCP含有率（％）、乾物摂取量、 • ブロイラーへのプロジェクト実施前後の１日１羽当たりの給餌量（重量） | G6: 本方法論は、次の条件の全てを満たす場合に適用することができる。 • 条件 1：プロジェクト実施前には慣用飼料を給餌しており、その給餌量が牛は「日本飼養標準」に基づく慣行レベル（標準 CP 値）に安全率 20％を見込んだ水準（標準 CP 値の 1.2 倍）を、豚は「日本飼養標準」に基づく慣行レベル（標準 CP 値）に安全率 20%を見込んだ水準（標準CP 値の 1.2 倍）を、ブロイラーはブロイラー品種ごとに定められた栄養推奨値の CP 値に安全率 10%を見込んだ水準（栄養推奨値の CP 値の 1.1 倍）を上回らないこと。 • 条件 2：プロジェクト実施後には慣用飼料の CP 含有率（%）から 1～3%引き下げた CP 含有率のアミノ酸バランス改善飼料を給餌しており、その給餌量が牛は「日本飼養標準」に基づく慣行レベル（標準 CP 値）に安全率 20％を見込んだ水準（標準 CP 値の 1.2 倍）を、豚は「日本飼養標準」に基づく慣行レベル（標準 CP 値）に安全率 20%を見込んだ水準（標準 CP 値の 1.2 倍）を、ブロイラーはブロイラー品種ごとに定められた栄養推奨値の CP 値に安全率 10%を見込んだ水準（栄養推奨値の CP 値の 1.1 倍）を上回らないこと。 • 条件 3：プロジェクト実施前後の排せつ物処理方法は温室効果ガスインベントリ報告書で記された「貯留、天日乾燥、火力乾燥、炭化処理、強制発酵、堆積発酵、焼却、浄化、メタン発酵、産業廃棄物処理、放牧又はその他」のいずれかであること。 • 条件 4：アミノ酸バランス改善飼料を給餌する家畜は、乳用牛・肉用牛・肥育豚・ブロイラーであること。 • 条件 5：ブロイラーへの給餌について、プロジェクト実施後の 1 日 1 羽当たりの CP の給餌量 （重量）は、プロジェクト実施前より増加しないこと。 | H6: ― | I6: ― | J6: ― | K6: ― | L6: ― | M6: ― | N6: ― | O6: ―
A7: AG-002 | B7: 家畜排せつ物管理方法の変更 | C7: 家畜の飼養における排せつ物の管理方法を変更することによりCH4及びN2O排出量を抑制する。 | D7: ① 温室効果ガスの排出が少ない排せつ物管理方法へと変更すること及びプロジェクト実施前後の排せつ物管理方法が日本国温室効果ガスインベントリ報告書で規定される管理区分に該当すること。 ② プロジェクト実施前後で、家畜種を変更しないこと。 ③ 家畜は、日本国温室効果ガスインベントリ報告書で規定される牛（乳用牛又は肉用牛）、豚又は鶏（採卵鶏又はブロイラー）であること。 | E7: プロジェクト実施後の家畜排せつ物をプロジェクト実施前の管理方法で処理する場合に想定される温室効果ガス排出量。 | F7: ・ プロジェクト実施前後の排せつ物管理区分 ・プロジェクト実施後の排せつ物管理区分ごとの家畜種ごとの飼養頭数及び飼養日数 ・ 排せつ物管理における燃料使用量及び電力使用量 | G7: 本方法論は、次の条件の全てを満たす場合に適用することができる。 • 条件 1：プロジェクト実施前の家畜排せつ物管理方法から、GHG 排出量が少ない家畜排せつ物管理方法へと変更すること。また、プロジェクト実施前後で、家畜排せつ物の管理方法が日本国温室効果ガスインベントリ報告書で規定される管理区分に該当すること。 • 条件 2：プロジェクト実施前後で、家畜種を変更しないこと。 • 条件 3：家畜は、日本国温室効果ガスインベントリ報告書で規定される牛（乳用牛又は肉用牛）、豚又は鶏（採卵鶏又はブロイラー）であること。 | H7: ― | I7: ― | J7: ― | K7: ― | L7: ― | M7: ― | N7: ― | O7: ―
A8: AG-003 | B8: 茶園土壌への硝化抑制剤入り化学肥料又は石灰窒素を含む複合肥料の施肥 | C8: 茶の栽培において、茶園に硝化抑制剤入りの化学肥料又は石灰窒素を含む複合肥料を施肥し、プ ロジェクト実施前の肥料施肥量を減らすことで、土壌からのN2O排出量を削減する。 | D8: ① プロジェクト実施前に施肥していた石灰窒素以外の窒素含有化学肥料又は有機肥料をジシアンジアミドが混合された化学肥料又は石灰窒素を含む複合肥料に代替すること。 ② 硝化抑制剤入り化学肥料又は石灰窒素を含む複合肥料を施肥する土壌で栽培する作物は茶であること。 ③ プロジェクト実施前後で、肥料の施肥方法、落葉・剪定枝の管理方法について変更がないこと。 ④ プロジェクト実施前に平均施肥量について1年間以上のデータがあること | E8: 茶園において、硝化抑制剤入り化学肥料又は石灰窒素を含む複合肥料ではない、窒素含有化学肥料又は有機肥料を施肥する場合に想定される温室効果ガス排出量。 | F8: ・プロジェクト実施後に硝化抑制剤入り化学肥料又は石灰窒素を含む複合肥料を施肥する面積及び平均施肥量 ・プロジェクトで施肥した硝化抑制剤入り化学肥料中又は石灰窒素を含む複合肥料中の窒素量及びジシアンジアミド含有量 ・プロジェクト実施前に化学肥料を施肥していた面積及び平均施肥量 | G8: 本方法論は、次の条件の全てを満たす場合に適用することができる。 ・条件 1：プロジェクト実施前に使用している石灰窒素以外の窒素含有化学肥料又は有機肥料を、プロジェクト実施後は硝化抑制剤であるジシアンジアミドが混合された化学肥料又は石灰窒素を含む複合肥料※に代替すること。 ・条件 2：硝化抑制剤入り化学肥料又は石灰窒素を含む複合肥料を施肥する土壌で栽培する作物は、茶であること。 ・条件 3：プロジェクト実施前後で、肥料の施肥方法、茶樹の落葉の管理方法、剪定枝の管理方法のいずれについても変更がないこと。 ・条件 4：窒素含有化学肥料又は有機肥料の平均施肥量について、プロジェクト実施前 1 年間以上のデータがあること。 | H8: ― | I8: ― | J8: ― | K8: ― | L8: ― | M8: ― | N8: ― | O8: ―
A9: AG-004 | B9: バイオ炭の農地施用 | C9: ー | D9: ① バイオ炭を、農地法第2条に定める「農地」又は「採草放牧地」における鉱質の土壌に施用すること。 ② 施用するバイオ炭は、炭素含有率及び100年後の炭素残存率のデフォルト値が適用できる種類であること、又はそのようなデフォルト値が適用できる原料及び製炭温度により製造されたものであることが、客観的に確認できること。 ③ バイオ炭の原料は国産であり、塗料、接着剤等が含まれていないこと。また、他に利用用途のないものであること（燃料用炭の副生物等も対象）。 | E9: ー | F9: ー | G9: 本方法論は、次の条件の全てを満たす場合に適用することができる。 ・ 条件 1：バイオ炭を、農地法第 2 条に定める「農地」又は「採草放牧地」における鉱質の土壌に施用すること。 ・ 条件 2：施用するバイオ炭は、炭素含有率及び 100 年後の炭素残存率のデフォルト値が適用できる種類であること、又はそのようなデフォルト値が適用できる原料及び製炭温度により製造されたものであることが、客観的に確認できること。 ・ 条件 3：バイオ炭の原料として木材（竹も含む）を使用する場合、当該原料は国内産であること。 ・ 条件 4：バイオ炭の原料は、未利用の生物資源であること。また、農地施用を用途とするバイオ炭の製造を目的として主伐された木材でないこと。 ・ 条件 5：バイオ炭の原料には、異物、塗料、接着剤、防腐剤、薬剤、有害物が含まれてないこと。また、その入手・使用にあたって法令違反や不適切な手続がないこと。 | H9: ― | I9: ― | J9: ― | K9: ― | L9: 2022-03-29 | M9: 一般社団法人 日本クルベジ協会 | N9: 農家におけるバイオ炭の農地利用 | O9: 247
A10: AG-005 | B10: 水稲栽培における中干し期間の延長 | C10: ー | D10: ー | E10: ー | F10: ー | G10: 本方法論は、次の条件を満たす場合に適用することができる。 ・ 条件：水稲栽培において、中干しの期間を、プロジェクト実施水田（以下、「当該水田」という。）におけるプロジェクト実施前の直近 2 か年以上の実施日数の平均より 7 日間以上延長すること。 | H10: ― | I10: ― | J10: ― | K10: ― | L10: ― | M10: ― | N10: ― | O10: ―
A11: EN-S-002 | B11: ヒートポンプの導入 | C11: 効率のよいヒートポンプを導入することにより、化石燃料の使用量を削減する。 | D11: ① 更新前の熱源設備又は標準的な熱源設備よりも効率のよいヒートポンプを導入すること。 ② ヒートポンプで生産した温水、冷水又は蒸気の熱を全部又は一部を自家消費すること。 | E11: プロジェクト実施後のヒートポンプによる生成熱量を、ベースラインの熱源設備から得る場合に想定されるCO2排出量。 | F11: ・ プロジェクト実施後のヒートポンプにおけるエネルギー使用量 ・プロジェクト実施後のヒートポンプの効率 ・ 更新前の熱源設備又は標準的な熱源設備の効率 | G11: 本方法論は、次の条件の全てを満たす場合に適用することができる。 • 条件 1：プロジェクト登録基準を満たすヒートポンプを導入すること。 • 条件 2：ベースラインの設備を特定できること。 • 条件 3：ヒートポンプで生産した温水、冷水又は蒸気の熱の全部又は一部を自家消費すること。 | H11: 2017-02-27 | I11: 社会福祉法人 敬長福祉会 | J11: 特別養護老人ホームにおけるヒートポンプの導入 | K11: 81 | L11: 2015-11-18 | M11: 北海道東急ビルマネジメント株式会社 | N11: マンションにおけるヒートポンプの新設 | O11: 71
H12: 2016-11-24 | I12: 株式会社 西村屋 | J12: ホテルにおける吸収式冷温水機の更新 (A重油→都市ガス) | K12: 127 | L12: 2016-11-24 | M12: 北海道東急ビルマネジメント株式会社 | N12: マンションにおけるヒートポンプの新設 | O12: 84
H13: 2020-05-29 | I13: 株式会社 西村屋 | J13: ホテルにおける吸収式冷温水機の更新 (A重油→都市ガス) | K13: 521 | L13: 2018-11-22 | M13: 北海道東急ビルマネジメント株式会社 | N13: マンションにおけるヒートポンプの新設 | O13: 190
H14: 2022-03-30 | I14: 留寿都村 | J14: 公共施設におけるヒートポンプの新設 (電気) | K14: 72 | L14: ― | M14: ― | N14: ― | O14: ―
H15: 2020-02-10 | I15: 国立大学法人岐阜大学 | J15: 病院におけるヒートポンプの更新 | K15: 2093 | L15: ― | M15: ― | N15: ― | O15: ―
H16: 2021-03-29 | I16: 株式会社萬世閣 | J16: 温泉施設におけるヒートポンプの導入 | K16: 412 | L16: ― | M16: ― | N16: ― | O16: ―
A17: EN-S-004 | B17: 空調設備の導入 | C17: 効率のよい空調設備を導入することにより、電力等の使用量を削減する。 | D17: ① 更新前の空調設備又は標準的な空調設備よりも、効率のよい空調設備を導入すること。 ② 空調設備で生産した暖気又は冷気の全部又は一部を自家消費すること。 | E17: プロジェクト実施後の空調設備による生成熱量を、ベースラインの空調設備から得る場合に想定されるCO2排出量。 | F17: ・プロジェクト実施後の空調設備におけるエネルギー使用量 ・ プロジェクト実施後の空調設備のエネルギー消費効率 ・ 更新前の空調設備又は標準的な空調設備のエネルギー消費効率 | G17: 本方法論は、次の条件の全てを満たす場合に適用することができる。 • 条件 1：プロジェクト登録基準を満たす空調設備を導入すること。 • 条件 2：ベースラインの設備を特定できること。 • 条件 3：空調設備で生産した暖気又は冷気の全部又は一部を自家消費すること。 | H17: 2016-03-01 | I17: 株式会社グリーンヘリテージ | J17: ゴルフ場における空調設備の更新 | K17: 8 | L17: 2015-11-18 | M17: 北海道東急ビルマネジメント株式会社 | N17: マンションにおける空調設備の新設 | O17: 21
H18: 2018-03-06 | I18: 株式会社グリーンヘリテージ | J18: ゴルフ場における空調設備の更新 | K18: 8 | L18: 2018-11-22 | M18: 北海道東急ビルマネジメント株式会社 | N18: マンションにおける空調設備の新設 | O18: 220
H19: 2017-02-27 | I19: 社会福祉法人 敬長福祉会 | J19: 特別養護老人ホームにおける空調設備の更新 (灯油、電力→電力) | K19: 17 | L19: 2015-11-17 | M19: 環境経済株式会社 | N19: 事業所における空調設備の更新 (電気→電気) | O19: 13
H20: 2018-02-23 | I20: 株式会社欽山 | J20: 温泉施設における空調設備の更新 (灯油→都市ガス) | K20: 0 | L20: ― | M20: ― | N20: ― | O20: ―
H21: 2022-02-10 | I21: 株式会社欽山 | J21: 温泉施設における空調設備の更新 (灯油→都市ガス) | K21: 6 | L21: ― | M21: ― | N21: ― | O21: ―
A22: EN-R-001 | B22: バイオマス固形燃料（木質バイオマス）による化石燃料又は系統電力の代替 | C22: ボイラー等の熱源設備、自家発電機等の発電設備又はコージェネレーション等において木質バイオマスを原料とするバイオマス固形燃料（木質ペレット、木質チップ又は薪等）を使用し、それまで使用していた化石燃料又は系統電力を代替することにより、排出量を削減する。 | D22: ① バイオマス固形燃料又は当該燃料で発電された電力が、化石燃料又は系統電力等を代替すること。 ② 原則として、バイオマス固形燃料を利用する対象設備で生産した熱及び電力の全部又は一部を自家消費すること（クレジットの認証対象は原則として自家消費分に限る）。 ③ バイオマス固形燃料の原料は、未利用の木質バイオマスであること。 ④ 家庭用暖房機器での使用に限り、使用される木質バイオマスは建築廃材ではないこと。 ⑤ 設備の導入を伴う場合は、当該対象設備に対応する方法論に定める適用条件を満たすこと。 | E22: プロジェクト実施後に対象設備で使用される熱量を、従来の化石燃料から得る場合に想定されるCO2排出量 | F22: ・ プロジェクト実施後におけるバイオマス固形燃料の使用量、当該燃料の供給過程（運搬、燃料化処理等）で使用される燃料・電力使用量、各種係数（単位発熱量、CO2排出係数等） ・設備の導入を伴う場合、ベースライン設備及びプロジェクト設備のエネルギー消費効率 | G22: 本方法論は、次の条件の全てを満たす場合に適用することができる。 • 条件 1：バイオマス固形燃料が対象設備で使用される化石燃料若しくは系統電力を代替すること又はバイオマス固形燃料で発電された電力が系統電力等を代替すること。 • 条件 2：原則として、バイオマス固形燃料を利用する対象設備で生産した熱及び電力の全部又は一部を、自家消費すること。 • 条件 3：バイオマス固形燃料の原料は、未利用の木質バイオマスであること。また、建築廃材以外の木質バイオマスについては、伐採に当たって法令に従い適切に手続が行われた木材に由来するものであること。輸入された木質バイオマスについては、その流通・加工を行う取扱者から、持続可能性（合法性）が証明された木材・木材製品を用いることを証明する書類の交付を受けること。 • 条件 4：ペレットストーブ等の家庭用暖房に限り、使用される木質バイオマスは、建築廃材ではないこと。 • 条件 5：化石燃料からバイオマス固形燃料への代替だけでなく、設備の導入を伴う場合は、当該対象設備に対応する方法論に定める適用条件を満たすこと。ただし、プロジェクト実施前後での対象設備の効率向上に関する条件は除く。 | H22: 96件 | L22: 14件
